Workbook

Sheet Instructions
A1: Highway Safety Improvement Program | K1: Version | L1: ='Safety Application'!J110 -> 20221028
A2: Formal Funding Application
A3: Scoring Tool Instructions
A5: The instructions can be used to understand the functionality of the tool. The tool attempts to complete as many fields as possible form information entered in the Economic Crash Analysis Tool (ECAT).
A7: The worksheets have been protected because the tool is standardized to import into the ODOT Central Office Database. Once submitted, the complete data layouts will be imported into the current database. At this point, the district will be able to make any changes desired prior to the HSIP Program Committee Review.
A10: I recommend starting a new application by importing data from existing ECAT Tool(s). The import functionality will obtain information from (1) an ECAT Tool that does not have a fundamental change in Safety Performance Function (SPF) ('No' response in Cell "K14" on the Project Information Worksheet) or (2) an ECAT Tool that has have a fundamental change in Safety Performance Function (SPF) ('Yes' response in Cell "K14" on the Project Information Worksheet). Follow the coded prompts. Two files will be required for Item (2). The order of import is does not matter. Following the import process, please verify the data as assumptions have been made. For example, it was assumed that only one route (major route) was used in the Project Element Description Table when determining project limits (All NLFIDs match in Column F). Note: If you choose to import a new dataset, any previous information will be overridden.
A13: At times, it will be necessary to change the font size of cells to make the text visible. Once the tool is activated, select the cells you desire to decrease / increase the font size (selection can be contiguous or noncontiguous cells). Once the cells have been selected, select the desired functionality.
A16: This tool can be used to add rows of details for either work locations of funding sources. Submitters can add up to a total of 10 work locations. Similarly, there are a ten (10) total funding sources possible (including the three already defined). For funding sources, we are asking that each source be individually itemized.

Sheet Safety Application
A1: General Project Information | Z1: Show Conditional Format: | AA1: Yes
A2: Project Sponsoring Agency | D2: ODOT D8 | Z2: Lat Long Format: | AA2: Yes
A3: Project Name | D3: =IF(ScoringCalculations!C2="","",ScoringCalculations!C2) -> SR-747 at SR-129 Interchanges and Grandin Ridge Drive/Logsdons Meadow Drive | Z3: Priority Rank Format: | AA3: Yes
A4: PID | D4: TBD
A5: Applicant Name | D5: Brianne Hetzel
A6: Contact Phone | D6: 513-933-6624
A7: Contact Email | D7: brianne.hetzel@dot.ohio.gov
A9: Location Information
A10: ODOT District | C10: =IFERROR(VLOOKUP(H10,RefTables!A:B,2,FALSE),"") -> 8 | F10: County | H10: =MID(A62,2,3) -> BUT
A11: Route Number | C11: =IFERROR(MID(A62,5,2)&"-"&MID(A62,7,5)*1&IF(LEFT(A62,1)="S",IF(RIGHT(A62,2)="*C","R",MID(A62,13,1)),IF(RIGHT(A62,3)="**C","",MID(A62,12,1))),"") -> SR-747R | F11: Road Name | H11: SR-747
A12: Begin Logpoint | C12: =IF(C62="","",C62) -> 5.43 | F12: End Logpoint | H12: =IF(D62="","",D62) -> 5.65
A13: Begin Latitude | F13: Begin Longitude
A14: End Latitude | F14: End Longitude
A16: Project Description
A17: Summary of Crash Patterns
A18: Crash data between 2018 and 2020 was obtained using ODOT’s TIMS website. A total of 100 crashes occurred within the study area with three involving serious injuries, thirteen involving minor injuries, and ten involving possible injuries. The data shows that rear end and left turn crashes happen more frequently in the study area than is typical. Crashes were higher on weekdays, especially on Monday (19%) and Tuesday (18%) and were most common between 2 PM and 7 PM. Following Too Closely/ACDA (Assured Clear Distance Ahead) was the highest contributing factor (54%) of crashes. Failure to Yield was the next most common contributing factor (23%), with six from angle crashes and 17 from left turn crashes indicating drivers were unable to properly select an appropriate gap in traffic. Pavement friction is likely not a significant contributing factor since 68% of the crashes occurred on dry pavement. The 2021-2022 updated crash data shows 25 crashes occurring in 2021 and 35 crashes occurring in 2022, with a nearly 32% injury rate. The highest concentration of crashes was still rear end and left turn crashes. There were 8 left turn crashes at the WB ramp and 10 left turn crashes at the EB ramp. Rear ends are primarily in the SB direction at both ramps due to queing of the left turns.
A19: Summary of Recommended Countermeasures
A20: The SR-129 EB ramp signal operates poorly during the AM peak, with several movements underperforming (LOS E/F). Additionally, the southbound left-turn movement shows LOS D, however, the 95% queue exceeds the existing storage. During the PM peak, this trend occurs again for the southbound left, while the rest of the intersection operates functionally (except the WB right-turn, with LOS E). The SR-129 WB ramp signal operates well during the AM peak and in the PM peak hours, except the WB approach during the AM Peak (LOS E), and the 95% queue exceeds the existing storage in the PM peak. The signalized ramp intersections operate poorly over all time periods, with several movements underperforming (LOS E/F) and 95% queues exceeding existing storage. Convert the interchange to a Diverging Diamond Interchange (DDI). All movements for both the AM and PM peak hours show acceptable levels of service (LOS D or better) in the design year. Furthermore, all V/C ratios are under 1.0, and all 95th Percentile Queues are within the existing/proposed storage lengths.
A21: Project Priority Information
A22: SuburbanNonFwy #36 (2020 SA List) SuburbanNonFwy #160 (2021 SA List)
A23: Crash Data
A24: Crash Totals
A25: (average per year) | F25: Fatal & Serious Injury (KA) | G25: Visible Injury (B) | H25: Non-Visible (C) | I25: Property Damage Only (O) | J25: Total
A26: Existing Conditions: Predicted Crash Frequency | F26: =IF(ScoringCalculations!D43=0,"",ScoringCalculations!D43) -> 0.4849 | G26: =IF(ScoringCalculations!E43=0,"",ScoringCalculations!E43) -> 1.9639 | H26: =IF(ScoringCalculations!F43=0,"",ScoringCalculations!F43) -> 2.9813 | I26: =IF(ScoringCalculations!G43=0,"",ScoringCalculations!G43) -> 14.0863 | J26: =ROUND(SUM(F26:I26),2) -> 19.52
A27: Existing Conditions: Expected Crash Frequency | F27: =IF(ScoringCalculations!D44=0,"",ScoringCalculations!D44) -> 0.5222 | G27: =IF(ScoringCalculations!E44=0,"",ScoringCalculations!E44) -> 2.1368 | H27: =IF(ScoringCalculations!F44=0,"",ScoringCalculations!F44) -> 3.2578 | I27: =IF(ScoringCalculations!G44=0,"",ScoringCalculations!G44) -> 18.3668 | J27: =ROUND(SUM(F27:I27),2) -> 24.28
A28: Potential for Safety Improvement | F28: =IF(ScoringCalculations!D45=0,"",ScoringCalculations!D45) -> 0.0373 | G28: =IF(ScoringCalculations!E45=0,"",ScoringCalculations!E45) -> 0.1729 | H28: =IF(ScoringCalculations!F45=0,"",ScoringCalculations!F45) -> 0.2765 | I28: =IF(ScoringCalculations!G45=0,"",ScoringCalculations!G45) -> 4.2805 | J28: 4.77
A29: ="Proposed Conditions: "&IF('Project Scoring'!H7="ECAT - Change in base SPF","Predicted","Expected")&" Crash Frequency" -> Proposed Conditions: Expected Crash Frequency | F29: =IF(ScoringCalculations!D46=0,"",ScoringCalculations!D46) -> 0.3464 | G29: =IF(ScoringCalculations!E46=0,"",ScoringCalculations!E46) -> 1.4201 | H29: =IF(ScoringCalculations!F46=0,"",ScoringCalculations!F46) -> 2.2084 | I29: =IF(ScoringCalculations!G46=0,"",ScoringCalculations!G46) -> 12.4259 | J29: 16.4
A30: Observed Crashes | F30: =IF(ScoringCalculations!D47="","",ScoringCalculations!D47) -> 1 | G30: =IF(ScoringCalculations!E47="","",ScoringCalculations!E47) -> 4.3333 | H30: =IF(ScoringCalculations!F47="","",ScoringCalculations!F47) -> 3.3333 | I30: =IF(ScoringCalculations!G47="","",ScoringCalculations!G47) -> 24.6667 | J30: 33.33
A31: Observed People Injury Totals
F32: Fatal Injury (K) | G32: Serious Injury (A) | H32: Visible Injury (B) | I32: Non-Visible (C) | J32: Total
A33: Observed People Injury Totals | F33: =IF(ScoringCalculations!D53="","",ScoringCalculations!D53) -> 0 | G33: =IF(ScoringCalculations!E53="","",ScoringCalculations!E53) -> 1.6667 | H33: =IF(ScoringCalculations!F53="","",ScoringCalculations!F53) -> 5.3333 | I33: =IF(ScoringCalculations!G53="","",ScoringCalculations!G53) -> 9 | J33: =ROUND(SUM(F33:I33),2) -> 16
A35: Application Scoring
A36: Category | H36: Scoring Value | I36: Points Awarded | J36: Points Possible
A37: Ratio of Observed Fatal and Serious Injuries to Observed Total Crashes | H37: =IF(J30=0,"",ROUND(SUM(F33:G33)/J30,2)) -> 0.05 | I37: =IFERROR(VLOOKUP(H37,ScoringTable!AA:AB,2,TRUE),"") -> 10 | J37: =MAX(ScoringTable!AB:AB) -> 30
A38: Percentage of the Potential for Safety Improvement to Total Expected Crashes | H38: =IF(J27=0,"",IF(J28<0,0,IFERROR(ROUND(J28/J27,4),0))) -> 0.1965 | I38: =IFERROR(VLOOKUP(H38,ScoringTable!AC:AD,2,TRUE),"") -> 14 | J38: =MAX(ScoringTable!AD:AD) -> 20
A39: Relative Severity Index | H39: =IF(ScoringCalculations!B36=0,"",ScoringCalculations!B36) -> 28889.8 | I39: =IFERROR(VLOOKUP(H39,ScoringTable!AE:AF,2,TRUE),"") -> 8 | J39: =MAX(ScoringTable!AF:AF) -> 20
A40: Equivalent Property Damage Only Index | H40: =IF(J27=0,IF(J30=0,"",ROUND((F30*ScoringCalculations!D48+G30*ScoringCalculations!E48+H30*ScoringCalculations!F48+I30*ScoringCalculations!G48)/J30,2)),ROUND((F27*ScoringCalculations!D48+G27*ScoringCalculations!E48+H27*ScoringCalculations!F48+I27*ScoringCalculations!G48)/J27,2)) -> 2.9 | I40: =IFERROR(VLOOKUP(H40,ScoringTable!AG:AH,2,TRUE),"") -> 8 | J40: =MAX(ScoringTable!AH:AH) -> 20
A41: Location Equity Measure | H41: 0 | I41: =IF(H41=0,"",IFERROR(VLOOKUP(H41,ScoringTable!AI:AJ,2,TRUE),"")) ->  | J41: =MAX(ScoringTable!AJ:AJ) -> 10
I42: =IFERROR(VLOOKUP(H42,ScoringTable!AM:AN,2,TRUE),"") -> 
I43: =IFERROR(IF(H43<0,0,VLOOKUP(H43,ScoringTable!AO:AP,2,TRUE)),"") -> 
I44: =IFERROR(VLOOKUP(H44,ScoringTable!AQ:AR,2,TRUE),"") -> 
A45: Total | I45: =IF(SUM(I37:I44)=0,"",SUM(I37:I44)) -> 40 | J45: =SUM(J37:J44) -> 100
A47: Safety Key Metrics
A48: Functional Class | D48: 3 - Other Principal Arterial Roadway | G48: Active Transportation Need
A49: Major Route AADT | D49: 26368 | G49: Active Transportation Demand
A50: Maximum Posted Speed Limit | D50: 55 | G50: Bicycle Level of traffic stress (if available)
G51: TOAST Score (if available) | J51: 0.57
A53: Strategic Highway Safety Plan
A54: Ohio Emphasis Area | E54: Serious Crash Types
A55: Ohio Emphasis Area Subcategory | E55: Intersection
A56: FHWA Emphasis Area | E56: Improving the design and operation of highway intersections
A57: FHWA Improvement Category | E57: Interchange design
A58: FHWA Improvement Subcategory | E58: Interchange design - other
A60: Work Locations
A61: NLFID | C61: Begin Logpoint | D61: End Logpoint | E61: Begin Latitude | F61: Begin Longitude | G61: Location Termini (i.e. from Street 1 to Street 2) | AA61: EndLatitude | AB61: EndLongitude
A62: SBUTSR00747**C | C62: 5.43 | D62: 5.65 | K62: =IF(OR(E62="",F62=""),"",HYPERLINK(CONCATENATE("http://maps.google.com/maps?q=",+E62,",+",+F62,"+(Begin Project)&iwloc=A&hl=en"),"Google Map")) ->  | M62: =IF(OR(E62="",F62=""),"",HYPERLINK(CONCATENATE("http://bing.com/maps/default.aspx?rtop=1~0&rtp=pos.",E62,"_",F62,"_","Begin Project"),"Bing Maps")) ->  | O62: =IF(A62="","",IF(OR(MID(A62,5,2)="IR",MID(A62,5,2)="SR",MID(A62,5,2)="US"),IF(RIGHT(A62,1)="C",HYPERLINK("http://pathweb.pathwayservices.com/ohiopublic/?nlfid='"&A62&"'&logpoint="&C62,"Pathway Images"),"Not Available"),"Not Available")) -> Pathway Images
K63: =IF(OR(E63="",F63=""),"",HYPERLINK(CONCATENATE("http://maps.google.com/maps?q=",+E63,",+",+F63,"+(Begin Project)&iwloc=A&hl=en"),"Google Map")) ->  | M63: =IF(OR(E63="",F63=""),"",HYPERLINK(CONCATENATE("http://bing.com/maps/default.aspx?rtop=1~0&rtp=pos.",E63,"_",F63,"_","Begin Project"),"Bing Maps")) -> 
A73: Project Funding
A74: Project Phase | D74: Safety Study | E74: Interchange Mod. Study | F74: PE - Environmental | G74: PE - Detailed Design | H74: Right of Way /Utilities | I74: Construction | J74: Total
A75: Fiscal Year | F75: 2024
A76: Project Phase Completed | I76: N/A
A77: Previous Safety | J77: =SUM(D77:I77) -> 0
A78: New Safety | F78: 300000 | J78: =SUM(D78:I78) -> 300000
A79: Sponsor Funding | J79: 0
J80: 0
J81: 0
J82: 0
J83: 0
J84: 0
J85: 0
J86: 0
C87: Total | D87: =SUM(D77:D86) -> 0 | E87: =SUM(E77:E86) -> 0 | F87: 300000 | G87: 0 | H87: 0 | I87: 0 | J87: 300000
A88: Additional Funding Detail
A89: Funding for feasibility study only to get better cost estimate and right of way impacts/utility impacts for the DDI. Also consider alternative for loop ramps for the existing left turn movements from SR-747 NB and SB to SR-129 EB/WB.
A91: Safety Economic Analysis Results
A92: Net Present Value of Project | E92: =IF(ScoringCalculations!D58=0,"",ScoringCalculations!D58) -> 6430000 | G92: Net Benefit | I92: =IF(ScoringCalculations!D60=0,"",ScoringCalculations!D60) -> -4623370.78
A93: Net Present Value of Safety Benefits | E93: =IF(ScoringCalculations!D59=0,"",ScoringCalculations!D59) -> 1806629.23 | G93: Benefit / Total Project Cost Ratio | I93: =IF(ScoringCalculations!D61="Unable to calculate","",ROUND(ScoringCalculations!D61,2)) -> 0.28
G94: Benefit / Safety Funding Request Ratio | I94: =IF(E93="","",IF(J78=0,"Please complete project funding table",ROUND(E93/J78,2))) -> 6.02
A96: Project Development
A97: Project Phase | E97: Completed by | H97: Completion Date
A98: Safety Study
A99: Interchange Modification Study
A100: PE-Environmental
A101: PE-Detailed Design
A102: Right of Way / Utilities
A104: Applicant Information
A105: Name | F105: Title | I105: Phone Number
A106: Brianne Hetzel | F106: D8 Traffic Studies Engineer | I106: =IF(D6="","",D6) -> 513-933-6624
A107: Signature | I107: Date
I108: =NOW() -> 2023-03-31T14:21:34.330
I110: Version: | J110: 20221028
A111: The following information should be included in submission of the safety project application: 1. An electronic copy of the Safety Engineering Study 2. All Excel Analysis Files May include Crash Analysis Module (CAM) Tool, Economic Crash Analysis Tool (ECAT), HSIP Application and Scoring Tool. 3. Benefit-Cost Results (Economic Analysis) 4. DSRT approval signatures
A113: ODOT Use Only:
A114: Application ID:
A115: 202303D08-05
A116: Document Library on Odrive:
A117: O:\SAFETY\D08\SAFETY APPLICATIONS\202303 Applications\202303D08-05 BUT SR-747 @ SR-129 interchange

Sheet DSRTSignature (hidden)
A1: General Project Information | Z1: Show Conditional Format: | AA1: Yes
A2: Project Sponsoring Agency | Z2: Lat Long Format: | AA2: Yes
A3: Project Name | Z3: Priority Rank Format: | AA3: Yes
A4: PID
A5: Project Manager
A6: Contact Phone
A7: Contact Email
A9: Project Description
A10: Summary of Crash Patterns
A12: Summary of Recommended Countermeasures | B12: Summary of Recommended Countermeasures | C12: Summary of Recommended Countermeasures | D12: Summary of Recommended Countermeasures | E12: Summary of Recommended Countermeasures | F12: Summary of Recommended Countermeasures | G12: Summary of Recommended Countermeasures | H12: Summary of Recommended Countermeasures | I12: Summary of Recommended Countermeasures | J12: Summary of Recommended Countermeasures
A14: Project Priority Information | B14: Project Priority Information | C14: Project Priority Information | D14: Project Priority Information | E14: Project Priority Information | F14: Project Priority Information | G14: Project Priority Information | H14: Project Priority Information | I14: Project Priority Information | J14: Project Priority Information
A17: District Safety Review Team Signatures
A18: Name | F18: Title | I18: Approve | J18: Disapprove
F19: Planning & Engineering Administrator | I19: ¨ | J19: ¨
A20: Signature | I20: Date
A22: Comments:
A23: Name | F23: Title | I23: Approve | J23: Disapprove
F24: Highway Management Adminstrator | I24: ¨ | J24: ¨
A25: Signature | I25: Date
A27: Comments:
A28: Name | F28: Title | I28: Approve | J28: Disapprove
F29: Design Engineer | I29: ¨ | J29: ¨
A30: Signature | I30: Date
A32: Comments:
A33: Name | F33: Title | I33: Approve | J33: Disapprove
F34: Planning Manager | I34: ¨ | J34: ¨
A35: Signature | I35: Date
A37: Comments:
A38: Name | F38: Title | I38: Approve | J38: Disapprove
F39: Traffic Engineer | I39: ¨ | J39: ¨
A40: Signature | I40: Date
A42: Comments:
A43: Name | F43: Title | I43: Approve | J43: Disapprove
F44: Other | I44: ¨ | J44: ¨
A45: Signature | I45: Date
A47: Comments:

Sheet Project Scoring (hidden)
A1: Project Scoring Summary
A2: General Project Information
A3: Project Name | F3: Contact Email
A4: Project Description | F4: Contact Phone
A5: Reference Number | F5: Date Performed
A6: Analyst | F6: Analysis Year
A7: Agency/Company | F7: Analysis Type Performed
B9: Category | H9: Value | I9: Points Awarded
B10: ='Safety Application'!A37 -> Ratio of Observed Fatal and Serious Injuries to Observed Total Crashes | H10: =IF('Safety Application'!H37="","",'Safety Application'!H37) -> 0.05 | I10: =IF('Safety Application'!I37="","",'Safety Application'!I37) -> 10
B11: ='Safety Application'!A38 -> Percentage of the Potential for Safety Improvement to Total Expected Crashes | H11: =IF('Safety Application'!H38="","",'Safety Application'!H38) -> 0.1965 | I11: =IF('Safety Application'!I38="","",'Safety Application'!I38) -> 14
B12: ='Safety Application'!A39 -> Relative Severity Index | H12: =IF('Safety Application'!H39="","",'Safety Application'!H39) -> 28889.8 | I12: =IF('Safety Application'!I39="","",'Safety Application'!I39) -> 8
B13: ='Safety Application'!A40 -> Equivalent Property Damage Only Index | H13: =IF('Safety Application'!H40="","",'Safety Application'!H40) -> 2.9 | I13: =IF('Safety Application'!I40="","",'Safety Application'!I40) -> 8
B14: ='Safety Application'!A41 -> Location Equity Measure | H14: =IF('Safety Application'!H41="","",'Safety Application'!H41) -> 0 | I14: =IF('Safety Application'!I41="","",'Safety Application'!I41) -> 
B16: Safety Application Score | I16: =SUM(I10:I14) -> 40

Sheet ScoringCalculations
A1: Project Scoring Summary | AA1: HSM Analysis Type: | AB1: ECAT - Change in base SPF
A2: Project Name | C2: SR-747 at SR-129 Interchanges and Grandin Ridge Drive/Logsdons Meadow Drive | F2: Contact Email | H2: kristi@lanhamengineering.com
A3: Project Description | C3: SR-747-5.49 Safety Study: Existing | F3: Contact Phone | H3: 309-269-0238
A4: Reference Number | F4: Date Performed | H4: 2022-06-30
A5: Analyst | C5: KMN | F5: Analysis Year | H5: 2018-2020
A6: Agency/Company | C6: Lanham Engineering, LLC | F6: Analysis Type Performed
A8: Relative Severity Index Calculation | AI8: All Sites
A9: ODOT District | B9: STW | AA9: NLFID: | AE9: FindTruck | AF9: 0 | AI9: HSM Elements Only | BA9: Crash Costs (2021)
A10: Urban Area | B10: Yes | AA10: Blog: | AE10: FindVC | AF10: 0 | AI10: Observed Elements Only | BA10: KA | BB10: B | BC10: C | BD10: O
A11: Freeway | B11: No | AA11: Elog: | BA11: 460098 | BB11: 66621 | BC11: 45156 | BD11: 10176
AA12: WAADT: | BA12: =ROUND(BA11/$BD$11,2) -> 45.21 | BB12: =ROUND(BB11/$BD$11,2) -> 6.55 | BC12: =ROUND(BC11/$BD$11,2) -> 4.44 | BD12: =ROUND(BD11/$BD$11,2) -> 1
A13: Fill in the Number of Crashes by Crash Type | AA13: WAADTT:
A14: Crash Type | B14: Number of Crashes | C14: Crash Type Severity Calc | D14: RSI Multiplier | AA14: WVCRatio:
A15: Unknown | B15: 0.01532481 | C15: =IF(OR($B$9="",$B$10="",$B$11=""),"",B15*D15) -> 430.948982 | D15: =IFERROR(ROUND(IF($B$9="STW",SUMIFS(RSI_Data!$F:$F,RSI_Data!$C:$C,$B$10,RSI_Data!$D:$D,$B$11,RSI_Data!$E:$E,$A15)/SUMIFS(RSI_Data!$G:$G,RSI_Data!$C:$C,$B$10,RSI_Data!$D:$D,$B$11,RSI_Data!$E:$E,$A15),SUMIFS(RSI_Data!$F:$F,RSI_Data!$C:$C,$B$10,RSI_Data!$D:$D,$B$11,RSI_Data!$A:$A,$B$9,RSI_Data!$E:$E,$A15)/SUMIFS(RSI_Data!$G:$G,RSI_Data!$C:$C,$B$10,RSI_Data!$D:$D,$B$11,RSI_Data!$A:$A,$B$9,RSI_Data!$E:$E,$A15)),0),0) -> 28121 | AA15: TotalLength:
A16: Head On | B16: 0.0712116 | C16: =IF(OR($B$9="",$B$10="",$B$11=""),"",B16*D16) -> 5333.606417 | D16: =IFERROR(ROUND(IF($B$9="STW",SUMIFS(RSI_Data!$F:$F,RSI_Data!$C:$C,$B$10,RSI_Data!$D:$D,$B$11,RSI_Data!$E:$E,$A16)/SUMIFS(RSI_Data!$G:$G,RSI_Data!$C:$C,$B$10,RSI_Data!$D:$D,$B$11,RSI_Data!$E:$E,$A16),SUMIFS(RSI_Data!$F:$F,RSI_Data!$C:$C,$B$10,RSI_Data!$D:$D,$B$11,RSI_Data!$A:$A,$B$9,RSI_Data!$E:$E,$A16)/SUMIFS(RSI_Data!$G:$G,RSI_Data!$C:$C,$B$10,RSI_Data!$D:$D,$B$11,RSI_Data!$A:$A,$B$9,RSI_Data!$E:$E,$A16)),0),0) -> 74898 | AA16: Functional Class: | AC16: =IFERROR(VLOOKUP(AB16,RefTables!E27:F34,2,FALSE),"Other") -> Other
A17: Rear End | B17: 9.64696797 | C17: 231951.6979 | D17: =IFERROR(ROUND(IF($B$9="STW",SUMIFS(RSI_Data!$F:$F,RSI_Data!$C:$C,$B$10,RSI_Data!$D:$D,$B$11,RSI_Data!$E:$E,$A17)/SUMIFS(RSI_Data!$G:$G,RSI_Data!$C:$C,$B$10,RSI_Data!$D:$D,$B$11,RSI_Data!$E:$E,$A17),SUMIFS(RSI_Data!$F:$F,RSI_Data!$C:$C,$B$10,RSI_Data!$D:$D,$B$11,RSI_Data!$A:$A,$B$9,RSI_Data!$E:$E,$A17)/SUMIFS(RSI_Data!$G:$G,RSI_Data!$C:$C,$B$10,RSI_Data!$D:$D,$B$11,RSI_Data!$A:$A,$B$9,RSI_Data!$E:$E,$A17)),0),0) -> 24044 | AA17: Truck %: | AB17: =IFERROR(ROUND(AB13/AB12,4),"") -> 
A18: Backing | B18: 0.28940355 | C18: 3673.978067 | D18: =IFERROR(ROUND(IF($B$9="STW",SUMIFS(RSI_Data!$F:$F,RSI_Data!$C:$C,$B$10,RSI_Data!$D:$D,$B$11,RSI_Data!$E:$E,$A18)/SUMIFS(RSI_Data!$G:$G,RSI_Data!$C:$C,$B$10,RSI_Data!$D:$D,$B$11,RSI_Data!$E:$E,$A18),SUMIFS(RSI_Data!$F:$F,RSI_Data!$C:$C,$B$10,RSI_Data!$D:$D,$B$11,RSI_Data!$A:$A,$B$9,RSI_Data!$E:$E,$A18)/SUMIFS(RSI_Data!$G:$G,RSI_Data!$C:$C,$B$10,RSI_Data!$D:$D,$B$11,RSI_Data!$A:$A,$B$9,RSI_Data!$E:$E,$A18)),0),0) -> 12695
A19: Sideswipe - Meeting | B19: 0.18100547 | C19: 6636.022541 | D19: =IFERROR(ROUND(IF($B$9="STW",SUMIFS(RSI_Data!$F:$F,RSI_Data!$C:$C,$B$10,RSI_Data!$D:$D,$B$11,RSI_Data!$E:$E,$A19)/SUMIFS(RSI_Data!$G:$G,RSI_Data!$C:$C,$B$10,RSI_Data!$D:$D,$B$11,RSI_Data!$E:$E,$A19),SUMIFS(RSI_Data!$F:$F,RSI_Data!$C:$C,$B$10,RSI_Data!$D:$D,$B$11,RSI_Data!$A:$A,$B$9,RSI_Data!$E:$E,$A19)/SUMIFS(RSI_Data!$G:$G,RSI_Data!$C:$C,$B$10,RSI_Data!$D:$D,$B$11,RSI_Data!$A:$A,$B$9,RSI_Data!$E:$E,$A19)),0),0) -> 36662
A20: Sideswipe - Passing | B20: 2.34253181 | C20: 44650.99883 | D20: =IFERROR(ROUND(IF($B$9="STW",SUMIFS(RSI_Data!$F:$F,RSI_Data!$C:$C,$B$10,RSI_Data!$D:$D,$B$11,RSI_Data!$E:$E,$A20)/SUMIFS(RSI_Data!$G:$G,RSI_Data!$C:$C,$B$10,RSI_Data!$D:$D,$B$11,RSI_Data!$E:$E,$A20),SUMIFS(RSI_Data!$F:$F,RSI_Data!$C:$C,$B$10,RSI_Data!$D:$D,$B$11,RSI_Data!$A:$A,$B$9,RSI_Data!$E:$E,$A20)/SUMIFS(RSI_Data!$G:$G,RSI_Data!$C:$C,$B$10,RSI_Data!$D:$D,$B$11,RSI_Data!$A:$A,$B$9,RSI_Data!$E:$E,$A20)),0),0) -> 19061
A21: Angle | B21: 3.56547671 | C21: 128884.8521 | D21: =IFERROR(ROUND(IF($B$9="STW",SUMIFS(RSI_Data!$F:$F,RSI_Data!$C:$C,$B$10,RSI_Data!$D:$D,$B$11,RSI_Data!$E:$E,$A21)/SUMIFS(RSI_Data!$G:$G,RSI_Data!$C:$C,$B$10,RSI_Data!$D:$D,$B$11,RSI_Data!$E:$E,$A21),SUMIFS(RSI_Data!$F:$F,RSI_Data!$C:$C,$B$10,RSI_Data!$D:$D,$B$11,RSI_Data!$A:$A,$B$9,RSI_Data!$E:$E,$A21)/SUMIFS(RSI_Data!$G:$G,RSI_Data!$C:$C,$B$10,RSI_Data!$D:$D,$B$11,RSI_Data!$A:$A,$B$9,RSI_Data!$E:$E,$A21)),0),0) -> 36148
A22: Parked Vehicle | B22: 0.29020058 | C22: 5554.439101 | D22: =IFERROR(ROUND(IF($B$9="STW",SUMIFS(RSI_Data!$F:$F,RSI_Data!$C:$C,$B$10,RSI_Data!$D:$D,$B$11,RSI_Data!$E:$E,$A22)/SUMIFS(RSI_Data!$G:$G,RSI_Data!$C:$C,$B$10,RSI_Data!$D:$D,$B$11,RSI_Data!$E:$E,$A22),SUMIFS(RSI_Data!$F:$F,RSI_Data!$C:$C,$B$10,RSI_Data!$D:$D,$B$11,RSI_Data!$A:$A,$B$9,RSI_Data!$E:$E,$A22)/SUMIFS(RSI_Data!$G:$G,RSI_Data!$C:$C,$B$10,RSI_Data!$D:$D,$B$11,RSI_Data!$A:$A,$B$9,RSI_Data!$E:$E,$A22)),0),0) -> 19140
A23: Pedestrian | B23: 0.0648 | C23: 9574.5888 | D23: =IFERROR(ROUND(IF($B$9="STW",SUMIFS(RSI_Data!$F:$F,RSI_Data!$C:$C,$B$10,RSI_Data!$D:$D,$B$11,RSI_Data!$E:$E,$A23)/SUMIFS(RSI_Data!$G:$G,RSI_Data!$C:$C,$B$10,RSI_Data!$D:$D,$B$11,RSI_Data!$E:$E,$A23),SUMIFS(RSI_Data!$F:$F,RSI_Data!$C:$C,$B$10,RSI_Data!$D:$D,$B$11,RSI_Data!$A:$A,$B$9,RSI_Data!$E:$E,$A23)/SUMIFS(RSI_Data!$G:$G,RSI_Data!$C:$C,$B$10,RSI_Data!$D:$D,$B$11,RSI_Data!$A:$A,$B$9,RSI_Data!$E:$E,$A23)),0),0) -> 147756
A24: Animal | B24: 0.03501047 | C24: 479.6084285 | D24: =IFERROR(ROUND(IF($B$9="STW",SUMIFS(RSI_Data!$F:$F,RSI_Data!$C:$C,$B$10,RSI_Data!$D:$D,$B$11,RSI_Data!$E:$E,$A24)/SUMIFS(RSI_Data!$G:$G,RSI_Data!$C:$C,$B$10,RSI_Data!$D:$D,$B$11,RSI_Data!$E:$E,$A24),SUMIFS(RSI_Data!$F:$F,RSI_Data!$C:$C,$B$10,RSI_Data!$D:$D,$B$11,RSI_Data!$A:$A,$B$9,RSI_Data!$E:$E,$A24)/SUMIFS(RSI_Data!$G:$G,RSI_Data!$C:$C,$B$10,RSI_Data!$D:$D,$B$11,RSI_Data!$A:$A,$B$9,RSI_Data!$E:$E,$A24)),0),0) -> 13699
A25: Train | B25: 6.556e-05 | C25: 5.74213816 | D25: =IFERROR(ROUND(IF($B$9="STW",SUMIFS(RSI_Data!$F:$F,RSI_Data!$C:$C,$B$10,RSI_Data!$D:$D,$B$11,RSI_Data!$E:$E,$A25)/SUMIFS(RSI_Data!$G:$G,RSI_Data!$C:$C,$B$10,RSI_Data!$D:$D,$B$11,RSI_Data!$E:$E,$A25),SUMIFS(RSI_Data!$F:$F,RSI_Data!$C:$C,$B$10,RSI_Data!$D:$D,$B$11,RSI_Data!$A:$A,$B$9,RSI_Data!$E:$E,$A25)/SUMIFS(RSI_Data!$G:$G,RSI_Data!$C:$C,$B$10,RSI_Data!$D:$D,$B$11,RSI_Data!$A:$A,$B$9,RSI_Data!$E:$E,$A25)),0),0) -> 87586
A26: Pedalcycles | B26: 0.1180011 | C26: 11594.78809 | D26: =IFERROR(ROUND(IF($B$9="STW",SUMIFS(RSI_Data!$F:$F,RSI_Data!$C:$C,$B$10,RSI_Data!$D:$D,$B$11,RSI_Data!$E:$E,$A26)/SUMIFS(RSI_Data!$G:$G,RSI_Data!$C:$C,$B$10,RSI_Data!$D:$D,$B$11,RSI_Data!$E:$E,$A26),SUMIFS(RSI_Data!$F:$F,RSI_Data!$C:$C,$B$10,RSI_Data!$D:$D,$B$11,RSI_Data!$A:$A,$B$9,RSI_Data!$E:$E,$A26)/SUMIFS(RSI_Data!$G:$G,RSI_Data!$C:$C,$B$10,RSI_Data!$D:$D,$B$11,RSI_Data!$A:$A,$B$9,RSI_Data!$E:$E,$A26)),0),0) -> 98260
A27: Other Non-Vehicle | B27: 0 | C27: 0 | D27: =IFERROR(ROUND(IF($B$9="STW",SUMIFS(RSI_Data!$F:$F,RSI_Data!$C:$C,$B$10,RSI_Data!$D:$D,$B$11,RSI_Data!$E:$E,$A27)/SUMIFS(RSI_Data!$G:$G,RSI_Data!$C:$C,$B$10,RSI_Data!$D:$D,$B$11,RSI_Data!$E:$E,$A27),SUMIFS(RSI_Data!$F:$F,RSI_Data!$C:$C,$B$10,RSI_Data!$D:$D,$B$11,RSI_Data!$A:$A,$B$9,RSI_Data!$E:$E,$A27)/SUMIFS(RSI_Data!$G:$G,RSI_Data!$C:$C,$B$10,RSI_Data!$D:$D,$B$11,RSI_Data!$A:$A,$B$9,RSI_Data!$E:$E,$A27)),0),0) -> 116914
A28: Fixed Object | B28: 0.97969521 | C28: 39995.07725 | D28: =IFERROR(ROUND(IF($B$9="STW",SUMIFS(RSI_Data!$F:$F,RSI_Data!$C:$C,$B$10,RSI_Data!$D:$D,$B$11,RSI_Data!$E:$E,$A28)/SUMIFS(RSI_Data!$G:$G,RSI_Data!$C:$C,$B$10,RSI_Data!$D:$D,$B$11,RSI_Data!$E:$E,$A28),SUMIFS(RSI_Data!$F:$F,RSI_Data!$C:$C,$B$10,RSI_Data!$D:$D,$B$11,RSI_Data!$A:$A,$B$9,RSI_Data!$E:$E,$A28)/SUMIFS(RSI_Data!$G:$G,RSI_Data!$C:$C,$B$10,RSI_Data!$D:$D,$B$11,RSI_Data!$A:$A,$B$9,RSI_Data!$E:$E,$A28)),0),0) -> 40824
A29: Other Object | B29: 0.04070888 | C29: 835.3869265 | D29: =IFERROR(ROUND(IF($B$9="STW",SUMIFS(RSI_Data!$F:$F,RSI_Data!$C:$C,$B$10,RSI_Data!$D:$D,$B$11,RSI_Data!$E:$E,$A29)/SUMIFS(RSI_Data!$G:$G,RSI_Data!$C:$C,$B$10,RSI_Data!$D:$D,$B$11,RSI_Data!$E:$E,$A29),SUMIFS(RSI_Data!$F:$F,RSI_Data!$C:$C,$B$10,RSI_Data!$D:$D,$B$11,RSI_Data!$A:$A,$B$9,RSI_Data!$E:$E,$A29)/SUMIFS(RSI_Data!$G:$G,RSI_Data!$C:$C,$B$10,RSI_Data!$D:$D,$B$11,RSI_Data!$A:$A,$B$9,RSI_Data!$E:$E,$A29)),0),0) -> 20521
A30: Overturning | B30: 0.08320189 | C30: 8548.744592 | D30: =IFERROR(ROUND(IF($B$9="STW",SUMIFS(RSI_Data!$F:$F,RSI_Data!$C:$C,$B$10,RSI_Data!$D:$D,$B$11,RSI_Data!$E:$E,$A30)/SUMIFS(RSI_Data!$G:$G,RSI_Data!$C:$C,$B$10,RSI_Data!$D:$D,$B$11,RSI_Data!$E:$E,$A30),SUMIFS(RSI_Data!$F:$F,RSI_Data!$C:$C,$B$10,RSI_Data!$D:$D,$B$11,RSI_Data!$A:$A,$B$9,RSI_Data!$E:$E,$A30)/SUMIFS(RSI_Data!$G:$G,RSI_Data!$C:$C,$B$10,RSI_Data!$D:$D,$B$11,RSI_Data!$A:$A,$B$9,RSI_Data!$E:$E,$A30)),0),0) -> 102747
A31: Other Non-Collision | B31: 0.1295926 | C31: 4827.583535 | D31: =IFERROR(ROUND(IF($B$9="STW",SUMIFS(RSI_Data!$F:$F,RSI_Data!$C:$C,$B$10,RSI_Data!$D:$D,$B$11,RSI_Data!$E:$E,$A31)/SUMIFS(RSI_Data!$G:$G,RSI_Data!$C:$C,$B$10,RSI_Data!$D:$D,$B$11,RSI_Data!$E:$E,$A31),SUMIFS(RSI_Data!$F:$F,RSI_Data!$C:$C,$B$10,RSI_Data!$D:$D,$B$11,RSI_Data!$A:$A,$B$9,RSI_Data!$E:$E,$A31)/SUMIFS(RSI_Data!$G:$G,RSI_Data!$C:$C,$B$10,RSI_Data!$D:$D,$B$11,RSI_Data!$A:$A,$B$9,RSI_Data!$E:$E,$A31)),0),0) -> 37252
A32: Left Turn | B32: 1.53330289 | C32: 57094.06641 | D32: =IFERROR(ROUND(IF($B$9="STW",SUMIFS(RSI_Data!$F:$F,RSI_Data!$C:$C,$B$10,RSI_Data!$D:$D,$B$11,RSI_Data!$E:$E,$A32)/SUMIFS(RSI_Data!$G:$G,RSI_Data!$C:$C,$B$10,RSI_Data!$D:$D,$B$11,RSI_Data!$E:$E,$A32),SUMIFS(RSI_Data!$F:$F,RSI_Data!$C:$C,$B$10,RSI_Data!$D:$D,$B$11,RSI_Data!$A:$A,$B$9,RSI_Data!$E:$E,$A32)/SUMIFS(RSI_Data!$G:$G,RSI_Data!$C:$C,$B$10,RSI_Data!$D:$D,$B$11,RSI_Data!$A:$A,$B$9,RSI_Data!$E:$E,$A32)),0),0) -> 37236
A33: Right Turn | B33: 0 | C33: 0 | D33: =IFERROR(ROUND(IF($B$9="STW",SUMIFS(RSI_Data!$F:$F,RSI_Data!$C:$C,$B$10,RSI_Data!$D:$D,$B$11,RSI_Data!$E:$E,$A33)/SUMIFS(RSI_Data!$G:$G,RSI_Data!$C:$C,$B$10,RSI_Data!$D:$D,$B$11,RSI_Data!$E:$E,$A33),SUMIFS(RSI_Data!$F:$F,RSI_Data!$C:$C,$B$10,RSI_Data!$D:$D,$B$11,RSI_Data!$A:$A,$B$9,RSI_Data!$E:$E,$A33)/SUMIFS(RSI_Data!$G:$G,RSI_Data!$C:$C,$B$10,RSI_Data!$D:$D,$B$11,RSI_Data!$A:$A,$B$9,RSI_Data!$E:$E,$A33)),0),0) -> 21036
A34: Totals | B34: =SUM(B15:B33) -> 19.3865011 | C34: =SUM(C15:C33) -> 560072.1301
A36: RSI Value = | B36: =IFERROR(ROUND(C34/B34,2),0) -> 28889.8
A40: All Sites
A41: Crash Frequencies Per Year Summary Results | AA41: Project EB Method Summary Results (Without Animal Crashes)
D42: KA | E42: B | F42: C | G42: O | H42: Total | AD42: KA | AE42: B | AF42: C | AG42: O | AH42: Total
A43: Existing Conditions: Predicted Crash Frequency | D43: =IF($AH$43+$AH$50=0,"",IF($A$40=$AI$10,AD50,IF($A$40=$AI$9,AD43,AD43+AD50))) -> 0.4849 | E43: =IF($AH$43+$AH$50=0,"",IF($A$40=$AI$10,AE50,IF($A$40=$AI$9,AE43,AE43+AE50))) -> 1.9639 | F43: 2.9813 | G43: 14.0863 | H43: =ROUND(SUM(D43:G43),2) -> 19.52 | AA43: Existing Conditions: Predicted Crash Frequency | AD43: 0.4849 | AE43: 1.9639 | AF43: 2.9813 | AG43: 14.0863 | AH43: 19.5164
A44: Existing Conditions: Expected Crash Frequency | D44: =IF($AH$44+$AH$50=0,"",IF($A$41=$AI$10,AD50,IF($A$41=$AI$9,AD44,AD44+AD50))) -> 0.5222 | E44: =IF($AH$44+$AH$50=0,"",IF($A$41=$AI$10,AE50,IF($A$41=$AI$9,AE44,AE44+AE50))) -> 2.1368 | F44: 3.2578 | G44: 18.3668 | H44: 24.28 | AA44: Existing Conditions: Expected Crash Frequency | AD44: 0.5222 | AE44: 2.1368 | AF44: 3.2578 | AG44: 18.3668 | AH44: 24.2836
A45: Potential for Safety Improvement | D45: =IF($AH$43+$AH$50=0,"",D44-D43) -> 0.0373 | E45: =IF($AH$43+$AH$50=0,"",E44-E43) -> 0.1729 | F45: 0.2765 | G45: 4.2805 | H45: 4.77 | AA45: Potential for Safety Improvement | AD45: 0.0373 | AE45: 0.1729 | AF45: 0.2765 | AG45: 4.2805 | AH45: 4.7672
A46: ="Proposed Conditions: "&IF('Project Scoring'!$H$7="ECAT - Change in base SPF","Predicted","Expected")&" Crash Frequency" -> Proposed Conditions: Expected Crash Frequency | D46: =IF($AH$46+$AH$51=0,"",IF($A$43=$AI$10,AD51,IF($A$43=$AI$9,AD46,AD46+AD51))) -> 0.3464 | E46: =IF($AH$46+$AH$51=0,"",IF($A$43=$AI$10,AE51,IF($A$43=$AI$9,AE46,AE46+AE51))) -> 1.4201 | F46: 2.2084 | G46: 12.4259 | H46: 16.4 | AA46: ="Proposed Conditions: "&IF('Project Scoring'!$H$7="ECAT - Change in base SPF","Predicted","Expected")&" Crash Frequency" -> Proposed Conditions: Expected Crash Frequency | AD46: 0.3464 | AE46: 1.4201 | AF46: 2.2084 | AG46: 12.4259 | AH46: 16.4008
A47: Observed Crashes | D47: 1 | E47: 4.3333 | F47: 3.3333 | G47: 24.6667 | H47: 33.33
A48: Equivalent Property Damage Only Factor | D48: =BA12 -> 45.21 | E48: =BB12 -> 6.55 | F48: 4.44 | G48: 1 | AA48: Project EB Method Summary Results (Without Animal Crashes)
A49: Equivalent Property Damage Only Value | D49: =IF($H$44=0,D48*D47,D44*D48) -> 23.608662 | E49: =IF($H$44=0,E48*E47,E44*E48) -> 13.99604 | F49: 14.464632 | G49: 18.3668 | H49: =ROUND(SUM(D49:G49),2) -> 70.44 | AD49: KA | AE49: B | AF49: C | AG49: O | AH49: Total
AA50: Existing Conditions Observed Crashes | AD50: 0 | AE50: 0 | AF50: 0 | AG50: 0 | AH50: 0
A51: People Injuries Per Year Summary Results | AA51: Proposed Conditions Observed Crashes | AD51: 0 | AE51: 0 | AF51: 0 | AG51: 0 | AH51: 0
D52: K | E52: A | F52: B | G52: C | H52: Total
A53: Observed Totals | D53: 0 | E53: 1.6667 | F53: 5.3333 | G53: 9 | H53: =ROUND(SUM(D53:G53),2) -> 16
A56: Benefit - Cost Ratio Calculations
C58: Net Present Value of Project | D58: 6430000
C59: Net Present Value of Safety Benefits | D59: 1806629.23
C60: Net Benefit | D60: -4623370.78
C61: Benefit / Cost Ratio | D61: 0.2809687753

Sheet ScoringTable
A1: ODOT Highway Safety Improvement Program (HSIP) | AA1: Safety Criteria
A2: Formal Funding Application Scoring Criteria | AA2: Ratio of Observed Fatal and Serious Injuries to Observed Total Crashes | AC2: Percentage of the Potential for Safety Improvement to Total Expected Crashes | AE2: Relative Severity Index | AG2: Equivalent Property Damage Only Index | AI2: Location Equity Measure
A3: =AA2 -> Ratio of Observed Fatal and Serious Injuries to Observed Total Crashes | C3: =AC2 -> Percentage of the Potential for Safety Improvement to Total Expected Crashes | E3: =AE2 -> Relative Severity Index | G3: =AG2 -> Equivalent Property Damage Only Index | I3: =AI2 -> Location Equity Measure | AA3: Value | AB3: Points | AC3: Value | AD3: Points | AE3: Value | AF3: Points | AG3: Value | AH3: Points | AI3: Value | AJ3: Points
A4: Value | B4: Points | C4: Value | D4: Points | E4: Value | F4: Points | G4: Value | H4: Points | I4: Value | J4: Points | AA4: 0 | AB4: 0 | AC4: 0 | AD4: 0 | AE4: 0 | AF4: 0 | AG4: 0 | AH4: 0 | AI4: 0 | AJ4: 0
A5: ="< "&TEXT(AA5,"#0.00") -> < 0.01 | B5: =IF(AB4="","",AB4) -> 0 | C5: ="< "&AC5*100&"%" -> < 2.5% | D5: =IF(AD4="","",AD4) -> 0 | E5: ="< "&TEXT(AE5,"00,000") -> < 20,000 | F5: =IF(AF4="","",AF4) -> 0 | G5: ="< "&TEXT(AG5,"#0.00") -> < 1.00 | H5: =IF(AH4="","",AH4) -> 0 | I5: ="< "&AI5*100&"%" -> < 10% | J5: =IF(AJ4="","",AJ4) -> 0 | AA5: 0.01 | AB5: 2 | AC5: 0.025 | AD5: 2 | AE5: 20000 | AF5: 2 | AG5: 1 | AH5: 2 | AI5: 0.1 | AJ5: 2
A6: =TEXT(AA5,"#0.00")&"-"&TEXT(AA6-0.001,"#0.000") -> 0.01-0.019 | B6: =IF(AB5="","",AB5) -> 2 | C6: =AC5*100&"%"&"-"&(AC6-0.0001)*100&"%" -> 2.5%-4.99% | D6: 2 | E6: =TEXT(AE5,"00,000")&"-"&TEXT(AE6-0.01,"00,000.00") -> 20,000-22,499.99 | F6: 2 | G6: =TEXT(AG5,"#0.00")&"-"&TEXT(AG6-0.001,"#0.000") -> 1.00-1.499 | H6: 2 | I6: =AI5*100&"%"&"-"&(AI6-0.0001)*100&"%" -> 10%-14.99% | J6: 2 | AA6: =AA5+0.01 -> 0.02 | AB6: 4 | AC6: =AC5+0.025 -> 0.05 | AD6: 4 | AE6: =AE5+2500 -> 22500 | AF6: 4 | AG6: =AG5+0.5 -> 1.5 | AH6: 4 | AI6: =AI5+0.05 -> 0.15 | AJ6: 4
A7: =TEXT(AA6,"#0.00")&"-"&TEXT(AA7-0.001,"#0.000") -> 0.02-0.029 | B7: 4 | C7: =AC6*100&"%"&"-"&(AC7-0.0001)*100&"%" -> 5%-7.49% | D7: 4 | E7: =TEXT(AE6,"00,000")&"-"&TEXT(AE7-0.01,"00,000.00") -> 22,500-24,999.99 | F7: 4 | G7: =TEXT(AG6,"#0.00")&"-"&TEXT(AG7-0.001,"#0.000") -> 1.50-1.999 | H7: 4 | I7: =AI6*100&"%"&"-"&(AI7-0.0001)*100&"%" -> 15%-19.99% | J7: 4 | AA7: =AA6+0.01 -> 0.03 | AB7: 6 | AC7: =AC6+0.025 -> 0.075 | AD7: 6 | AE7: =AE6+2500 -> 25000 | AF7: 6 | AG7: =AG6+0.5 -> 2 | AH7: 6 | AI7: =AI6+0.05 -> 0.2 | AJ7: 6
A8: 0.03-0.039 | B8: 6 | C8: 7.5%-9.99% | D8: 6 | E8: 25,000-27,499.99 | F8: 6 | G8: 2.00-2.499 | H8: 6 | I8: 20%-24.99% | J8: 6 | AA8: 0.04 | AB8: 8 | AC8: 0.1 | AD8: 8 | AE8: 27500 | AF8: 8 | AG8: 2.5 | AH8: 8 | AI8: 0.25 | AJ8: 8
A9: 0.04-0.049 | B9: 8 | C9: 10%-12.49% | D9: 8 | E9: 27,500-29,999.99 | F9: 8 | G9: 2.50-2.999 | H9: 8 | I9: 25%-29.99% | J9: 8 | AA9: 0.05 | AB9: 10 | AC9: 0.125 | AD9: 10 | AE9: 30000 | AF9: 10 | AG9: 3 | AH9: 10 | AI9: 0.3 | AJ9: 10
A10: 0.05-0.059 | B10: 10 | C10: 12.5%-14.99% | D10: 10 | E10: 30,000-32,499.99 | F10: 10 | G10: 3.00-3.499 | H10: 10 | I10: ="≥ "&AI9*100&"%" -> ≥ 30% | J10: 10 | AA10: 0.06 | AB10: 12 | AC10: 0.15 | AD10: 12 | AE10: 32500 | AF10: 12 | AG10: 3.5 | AH10: 12
A11: 0.06-0.069 | B11: 12 | C11: 15%-17.49% | D11: 12 | E11: 32,500-34,999.99 | F11: 12 | G11: 3.50-3.999 | H11: 12 | AA11: 0.07 | AB11: 14 | AC11: 0.175 | AD11: 14 | AE11: 35000 | AF11: 14 | AG11: 4 | AH11: 14
A12: 0.07-0.079 | B12: 14 | C12: 17.5%-19.99% | D12: 14 | E12: 35,000-37,499.99 | F12: 14 | G12: 4.00-4.499 | H12: 14 | AA12: 0.08 | AB12: 16 | AC12: 0.2 | AD12: 16 | AE12: 37500 | AF12: 16 | AG12: 4.5 | AH12: 16
A13: 0.08-0.089 | B13: 16 | C13: 20%-22.49% | D13: 16 | E13: 37,500-39,999.99 | F13: 16 | G13: 4.50-4.999 | H13: 16 | AA13: 0.09 | AB13: 18 | AC13: 0.225 | AD13: 18 | AE13: 40000 | AF13: 18 | AG13: 5 | AH13: 18
A14: 0.09-0.099 | B14: 18 | C14: 22.5%-24.99% | D14: 18 | E14: 40,000-42,499.99 | F14: 18 | G14: 5.00-5.499 | H14: 18 | AA14: 0.1 | AB14: 20 | AC14: 0.25 | AD14: 20 | AE14: 42500 | AF14: 20 | AG14: 5.5 | AH14: 20
A15: 0.10-0.109 | B15: 20 | C15: ="≥ "&AC14*100&"%" -> ≥ 25% | D15: 20 | E15: ="≥ "&TEXT(AE14,"00,000") -> ≥ 42,500 | F15: 20 | G15: ="≥ "&TEXT(AG14,"#0.00") -> ≥ 5.50 | H15: 20 | AA15: 0.11 | AB15: 22
A16: 0.11-0.119 | B16: 22 | AA16: 0.12 | AB16: 24
A17: 0.12-0.129 | B17: 24 | AA17: 0.13 | AB17: 26
A18: 0.13-0.139 | B18: 26 | AA18: 0.14 | AB18: 28
A19: 0.14-0.149 | B19: 28 | AA19: 0.15 | AB19: 30
A20: ="≥ "&TEXT(AA19,"#0.00") -> ≥ 0.15 | B20: 30
J24: Total Points
J26: =SUM(MAX(AB4:AB1000),MAX(AD4:AD1000),MAX(AF4:AF1000),MAX(AH4:AH1000),MAX(AJ4:AJ1000),MAX(AL4:AL1000),MAX(AN4:AN1000),MAX(AP4:AP1000),MAX(AR4:AR1000)) -> 100

Sheet RefTables (hidden)
A1: County Code | B1: District Number | D1: Ohio SHSP Emphasis Area | F1: FHWA SHSP Emphasis Area | H1: Improvement Type | I1: Access management | J1: Advanced technology and ITS | K1: Alignment | L1: Interchange design | M1: Intersection geometry | S1: MPH
A2: =LEFT(C2,3) -> ADA | B2: 9 | C2: ADA - Adams | D2: Serious Crash Types | F2: Creating more effective processes and safety management systems | H2: Access management | K2: Alignment - other | L2: Acceleration / deceleration / merge lane | S2: 5
A3: =LEFT(C3,3) -> ALL | B3: 1 | C3: ALL - Allen | D3: High Risk Drivers and Behaviors | F3: Curbing aggressive driving | H3: Advanced technology and ITS | I3: Access management - other | J3: AdvancedtechnologyandITS | K3: Horizontal curve realignment | L3: Convert at-grade intersection to interchange | M3: Auxiliary lanes - add acceleration lane | S3: =S2+5 -> 10
A4: ASD | B4: 3 | C4: ASD - Ashland | D4: Special Vehicles and Roadway Users | F4: Designing safer work zones | H4: Alignment | I4: Change in access - close or restrict existing access | J4: Advanced technology and ITS - other | K4: Horizontal and vertical alignment | L4: Extend existing lane on ramp | M4: Auxiliary lanes - add auxiliary through lane | S4: =S3+5 -> 15
A5: ATB | B5: 4 | C5: ATB - Ashtabula | D5: Data | F5: Enhancing emergency medical capabilities to increase survivability | H5: Animal-related | I5: Change in access - miscellaneous/unspecified | J5: Congestion detection / traffic monitoring system | K5: Vertical alignment or elevation change | L5: Improve intersection radius at ramp terminus | M5: Auxiliary lanes - add left-turn lane | S5: 20
A6: ATH | B6: 10 | C6: ATH - Athens | F6: Ensuring drivers are licensed and fully competent | H6: Interchange design | I6: Grassed median - extend existing | J6: Dynamic message signs | L6: Installation of new lane on ramp | M6: Auxiliary lanes - add right-turn lane | S6: 25
A7: AUG | B7: 7 | C7: AUG - Auglaize | F7: Ensuring safer bicycle travel | H7: Intersection geometry | I7: Median crossover - close crossover | J7: Over height vehicle detection | K7: Roadside | L7: Interchange design - other | M7: Auxiliary lanes - add right-turn lane (free-flow) | S7: 30
A8: BEL | B8: 11 | C8: BEL - Belmont | D8: Data | F8: Improving information and decision support systems | H8: Intersection traffic control | I8: Median crossover - directional crossover | L8: Ramp closure | M8: Auxiliary lanes - add slip lane | S8: 35
A9: BRO | B9: 9 | C9: BRO - Brown | D9: Timely Data | F9: Improving motorcycle safety and increasing motorcycle awareness | H9: Lighting | I9: Median crossover - relocate existing | K9: Barrier end treatments (crash cushions, terminals) | L9: Ramp metering | M9: Auxiliary lanes - add two-way left-turn lane | S9: 40
A10: BUT | B10: 8 | C10: BUT - Butler | D10: Reliable Data | F10: Improving the design and operation of highway intersections | H10: Miscellaneous | I10: Median crossover - unspecified | K10: Barrier transitions | M10: Auxiliary lanes - extend acceleration/deceleration lane | S10: 45
A11: CAR | B11: 11 | C11: CAR - Carroll | D11: Comprehensive Data | F11: Increasing driver safety awareness | H11: Non-infrastructure | I11: Raised island - install new | K11: Barrier - cable | M11: Auxiliary lanes - extend existing left-turn lane | S11: 50
A12: CHP | B12: 7 | C12: CHP - Champaign | D12: Integrated Data and Analysis Systems | F12: Increasing safety enhancements in vehicles | H12: Parking | I12: Raised island - modify existing | K12: Barrier - concrete | M12: Auxiliary lanes - extend existing right-turn lane | S12: =S11+5 -> 55
A13: CLA | B13: 7 | C13: CLA - Clark | F13: Increasing seat belt use and improving airbag effectiveness | H13: Pedestrians and bicyclists | I13: Raised island - remove existing | K13: Barrier- metal | M13: Auxiliary lanes - miscellaneous/other/unspecified | S13: 60
A14: CLE | B14: 8 | C14: CLE - Clermont | D14: SeriousCrashTypes | F14: Instituting graduated licensing for younger drivers | H14: Railroad grade crossings | I14: Raised island - unspecified | K14: Barrier - other | M14: Auxiliary lanes - modify acceleration lane | S14: 65
A15: CLI | B15: 8 | C15: CLI - Clinton | D15: Roadway Departure | F15: Keeping drivers alert | H15: Roadside | K15: Barrier - removal | M15: Auxiliary lanes - modify auxiliary through lane | S15: 70
A16: COL | B16: 11 | C16: COL - Columbiana | D16: Intersection | F16: Keeping vehicles in the roadway | H16: Roadway | K16: Curb or curb and gutter | M16: Auxiliary lanes - modify free-flow turn lane
A17: COS | B17: 5 | C17: COS - Coshocton | D17: Highway Railroad Crossing | F17: Making truck travel safer | H17: Roadway delineation | K17: Drainage improvements | M17: Auxiliary lanes - modify left-turn lane offset
A18: CRA | B18: 3 | C18: CRA - Crawford | F18: Making walking and street crossing easier | H18: Roadway signs and traffic control | K18: Fencing | M18: Auxiliary lanes - modify right-turn lane offset
A19: CUY | B19: 12 | C19: CUY - Cuyahoga | F19: Minimizing the consequences of leaving the road | H19: Shoulder treatments | K19: Removal of roadside objects (trees, poles, etc.) | M19: Auxiliary lanes - modify turn lane storage
A20: DAR | B20: 7 | C20: DAR - Darke | D20: HighRiskDriversandBehaviors | F20: Reducing head-on and across-median crashes | H20: Speed management | K20: Roadside grading | M20: Auxiliary lanes - modify turn lane taper
A21: DEF | B21: 1 | C21: DEF - Defiance | D21: Impaired Drivers | F21: Reducing impaired driving | H21: Work Zone | K21: Roadside - other | M21: Auxiliary lanes - modify two-way left-turn lane
A22: DEL | B22: 6 | C22: DEL - Delaware | D22: Seat Belt | F22: Reducing vehicle-train crashes | M22: Intersection geometrics - miscellaneous/other/unspecified
A23: ERI | B23: 3 | C23: ERI - Erie | D23: Speed | F23: Sustaining proficiency in older drivers | M23: Intersection geometrics - modify intersection corner radius
A24: FAI | B24: 5 | C24: FAI - Fairfield | D24: Young Drivers | F24: Other | H24: Animal-related | I24: Intersection traffic control | J24: Lighting | K24: Roadway | M24: Intersection geometrics - modify skew angle
A25: FAY | B25: 6 | C25: FAY - Fayette | D25: Older Drivers | M25: Intersection geometrics - realignment to align offset cross streets
A26: FRA | B26: 6 | C26: FRA - Franklin | D26: Distracted Drivers | F26: Functional Class | I26: Intersection flashers - add "when flashing" warning sign-mounted | J26: Continuous roadway lighting | K26: Install / remove / modify passing zone | M26: Intersection geometrics - realignment to increase cross street offset
A27: FUL | B27: 2 | C27: FUL - Fulton | E27: 1 | F27: 1 - Interstates | I27: Intersection flashers - add advance emergency vehicle warning sign-mounted | J27: Intersection lighting | K27: Pavement surface - high friction surface | M27: Intersection geometrics - re-assign existing lane use
A28: GAL | B28: 10 | C28: GAL - Gallia | D28: SpecialVehiclesandRoadwayUsers | E28: 2 | F28: 2 - Other Freeways or Expressways | I28: Intersection flashers - add advance heavy vehicle warning sign-mounted | J28: Lighting - other | K28: Pavement surface - miscellaneous | M28: Intersection geometry - other
A29: GEA | B29: 12 | C29: GEA - Geauga | D29: Bicycle Riders | E29: 3 | F29: 3 - Other Principal Arterial Roadway | I29: Intersection flashers - add advance intersection warning sign-mounted | J29: Site lighting - horizontal curve | K29: Roadway narrowing (road diet, roadway reconfiguration) | M29: Splitter island - install on one or more approaches
A30: GRE | B30: 8 | C30: GRE - Greene | D30: Pedestrians | E30: 4 | F30: 4 - Minor Arterial Roadway | I30: Intersection flashers - add miscellaneous/other/unspecified | J30: Site lighting - intersection | K30: Roadway - other | M30: Splitter island - remove from one or more approaches
A31: GUE | B31: 5 | C31: GUE - Guernsey | D31: Commercial Vehicles | E31: 5 | F31: 5 - Major Collector Roadway | I31: Intersection flashers - add overhead (actuated) | J31: Site lighting - interchange | K31: Roadway - restripe to revise separation between opposing lanes and/or shoulder widths | M31: Splitter island - unspecified
A32: HAM | B32: 8 | C32: HAM - Hamilton | D32: Motorcycles | E32: 6 | F32: 6 - Minor Collector Roadway | I32: Intersection flashers - add overhead (continuous) | J32: Site lighting - pedestrian crosswalk | K32: Roadway widening - add lane(s) along segment | M32: Through lanes - add additional through lane
A33: HAN | B33: 1 | C33: HAN - Hancock | E33: 7 | F33: 7 - Local Roadway | I33: Intersection flashers - add stop sign-mounted | K33: Roadway widening - curve
A34: HAR | B34: 1 | C34: HAR - Hardin | E34: 99 | F34: 99 - Other Roadway | I34: Intersection flashers - modify existing | K34: Roadway widening - travel lanes
A35: HAS | B35: 11 | C35: HAS - Harrison | I35: Intersection flashers - remove existing | J35: Parking | K35: Rumble strips - center
A36: HEN | B36: 2 | C36: HEN - Henry | I36: Intersection signing - add basic advance warning | K36: Rumble strips - edge or shoulder
A37: HIG | B37: 9 | C37: HIG - Highland | I37: Intersection signing - add enhanced advance warning (double-up and/or oversize) | J37: Modify parking | K37: Rumble strips - transverse
A38: HOC | B38: 10 | C38: HOC - Hocking | I38: Intersection signing - add enhanced regulatory sign (double-up and/or oversize) | J38: Parking - other | K38: Rumble strips - unspecified or other
A39: HOL | B39: 11 | C39: HOL - Holmes | I39: Intersection signing - miscellaneous/other/unspecified | J39: Remove parking | K39: Superelevation / cross slope
A40: HUR | B40: 3 | C40: HUR - Huron | I40: Intersection signing - relocate existing regulatory sign | J40: Restrict parking
A41: JAC | B41: 9 | C41: JAC - Jackson | I41: Intersection traffic control - other | J41: Truck parking facilities
A42: JEF | B42: 11 | C42: JEF - Jefferson | I42: Modify control - all-way stop to roundabout
A43: KNO | B43: 5 | C43: KNO - Knox | I43: Modify control - modifications to roundabout | J43: Pedestrians and bicyclists | K43: Roadway delineation
A44: LAK | B44: 12 | C44: LAK - Lake | I44: Modify control - no control to roundabout
A45: LAW | B45: 9 | C45: LAW - Lawrence | I45: Modify control - no control to two-way stop | J45: Crosswalk | K45: Improve retroreflectivity
A46: LIC | B46: 5 | C46: LIC - Licking | I46: Modify control - remove right-turn yield | J46: Install new "smart" crosswalk | K46: Longitudinal pavement markings - new
A47: LOG | B47: 7 | C47: LOG - Logan | I47: Modify control - reverse priority of stop condition | J47: Install new crosswalk | K47: Longitudinal pavement markings - remarking
A48: LOR | B48: 3 | C48: LOR - Lorain | I48: Modify control - traffic signal to roundabout | J48: Install sidewalk | K48: Delineators post-mounted or on barrier
A49: LUC | B49: 2 | C49: LUC - Lucas | I49: Modify control - two-way stop to all-way stop | J49: Medians and pedestrian refuge areas | K49: Raised pavement markers
A50: MAD | B50: 6 | C50: MAD - Madison | I50: Modify control - two-way stop to signal operation | J50: Miscellaneous pedestrians and bicyclists | K50: Roadway delineation - other
A51: MAH | B51: 4 | C51: MAH - Mahoning | I51: Modify control - two-way stop to roundabout | J51: Modify existing crosswalk
A52: MAR | B52: 6 | C52: MAR - Marion | I52: Modify control - two-way yield to two-way stop | J52: Pedestrian beacons
A53: MED | B53: 3 | C53: MED - Medina | I53: Pavement Markings - add advance signal ahead | J53: Pedestrian bridge | K53: Roadway signs and traffic control
A54: MEG | B54: 10 | C54: MEG - Meigs | I54: Pavement markings - add advance stop ahead | J54: Pedestrian signal
A55: MER | B55: 7 | C55: MER - Mercer | I55: Pavement markings - add dashed edge line along mainline | J55: Pedestrian signal - audible device | K55: Curve-related warning signs and flashers
A56: MIA | B56: 7 | C56: MIA - Miami | I56: Pavement markings - add lane use symbols | J56: Pedestrian signal - Pedestrian Hybrid Beacon | K56: Sign sheeting - upgrade or replacement
A57: MOE | B57: 10 | C57: MOE - Monroe | I57: Pavement markings - add stop line | J57: Pedestrian signal - install new at intersection | K57: Roadway signs and traffic control - other
A58: MOT | B58: 7 | C58: MOT - Montgomery | I58: Pavement markings - add yield line | J58: Pedestrian signal - install new at non-intersection location | K58: Roadway signs (including post) - new or updated
A59: MRG | B59: 10 | C59: MRG - Morgan | I59: Pavement markings - miscellaneous/other/unspecified | J59: Pedestrian signal - modify existing
A60: MRW | B60: 6 | C60: MRW - Morrow | I60: Pavement markings - refresh existing pavement markings | J60: Pedestrian signal - remove existing
A61: MUS | B61: 5 | C61: MUS - Muskingum | I61: Modify traffic signal - add additional signal heads | J61: Pedestrian warning signs - add/modify flashers
A62: NOB | B62: 10 | C62: NOB - Noble | I62: Modify traffic signal - add backplates | J62: Pedestrian warning signs - overhead
A63: OTT | B63: 2 | C63: OTT - Ottawa | I63: Modify traffic signal - add backplates with retroreflective borders
A64: PAU | B64: 1 | C64: PAU - Paulding | I64: Modify traffic signal - add closed loop system | J64: Railroad grade crossings
A65: PER | B65: 5 | C65: PER - Perry | I65: Modify traffic signal - add emergency vehicle preemption
A66: PIC | B66: 6 | C66: PIC - Pickaway | I66: Modify traffic signal - add flashing yellow arrow | J66: Grade separation
A67: =LEFT(C67,3) -> PIK | B67: 9 | C67: PIK - Pike | I67: Modify traffic signal - add long vehicle detection | J67: Model enforcement activity
A68: POR | B68: 4 | C68: POR - Portage | I68: Modify traffic signal - add railroad preemption | J68: Protective devices
A69: PRE | B69: 8 | C69: PRE - Preble | I69: Modify traffic signal - add wireless system | J69: Railroad grade crossing gates
A70: PUT | B70: 1 | C70: PUT - Putnam | I70: Modify traffic signal - miscellaneous/other/unspecified | J70: Railroad grade crossing signing
A71: RIC | B71: 3 | C71: RIC - Richland | I71: Modify traffic signal - modernization/replacement | J71: Railroad grade crossings - other | K71: Speed management
A72: ROS | B72: 9 | C72: ROS - Ross | I72: Modify traffic signal - modify signal mounting (spanwire to mast arm) | J72: Surface treatment
A73: SAN | B73: 2 | C73: SAN - Sandusky | I73: Modify traffic signal - remove existing signal | J73: Upgrade railroad crossing signal | K73: Modify speed limit
A74: SCI | B74: 9 | C74: SCI - Scioto | I74: Modify traffic signal - replace existing indications (incandescent-to-LED and/or 8-to-12 inch dia.) | J74: Widen crossing for additional lane | K74: Radar speed signs
A75: SEN | B75: 2 | C75: SEN - Seneca | I75: Modify traffic signal timing - left-turn phasing (permissive to protected/permissive) | K75: Speed detection system / truck warning
A76: SHE | B76: 7 | C76: SHE - Shelby | I76: Modify traffic signal timing - left-turn phasing (permissive to protected-only) | K76: Speed management - other
A77: STA | B77: 4 | C77: STA - Stark | I77: Modify traffic signal timing - adjust clearance interval (yellow change and/or all-red) | K77: Traffic calming feature
A78: SUM | B78: 4 | C78: SUM - Summit | I78: Modify traffic signal timing - general retiming
A79: TRU | B79: 4 | C79: TRU - Trumbull | I79: Modify traffic signal timing - signal coordination
A80: TUS | B80: 11 | C80: TUS - Tuscarawas | I80: Systemic improvements - signal-controlled
A81: UNI | B81: 6 | C81: UNI - Union | I81: Systemic improvements - stop-controlled | J81: Miscellaneous
A82: VAN | B82: 1 | C82: VAN - Van Wert
A83: VIN | B83: 10 | C83: VIN - Vinton
A84: WAR | B84: 8 | C84: WAR - Warren
A85: WAS | B85: 10 | C85: WAS - Washington | H85: Non-infrastructure | I85: Shoulder treatments | J85: Work Zone
A86: WAY | B86: 3 | C86: WAY - Wayne | H86: Educational efforts | I86: Widen shoulder – paved or other
A87: WIL | B87: 2 | C87: WIL - Williams | H87: Enforcement | I87: Pave existing shoulders
A88: WOO | B88: 2 | C88: WOO - Wood | H88: Data/traffic records | I88: Shoulder grading
A89: WYA | B89: 1 | C89: WYA - Wyandot | H89: Non-infrastructure - other | I89: Shoulder treatments - other
H90: Outreach
H91: Road safety audits
H92: Training and workforce development
H93: Transportation safety planning

Sheet RSI_Data (hidden)
E1: =F1/G1 -> 32524.06194 | F1: =SUBTOTAL(9,F3:F86584) -> 45972111066 | G1: =SUBTOTAL(9,G3:G86584) -> 1413480
A2: DISTRICT_NBR | B2: NLF_COUNTY_CD | C2: URBAN_AREA | D2: FREEWAY_IND | E2: CRASH_TYPE_CD | F2: CRASH_COST_NBR | G2: Crash_Count | J2: Select
A3: 2 | B3: FUL | C3: No | D3: No | E3: Parked Vehicle | F3: 1474677 | G3: 55 | J3: --CRASH_YR,
A4: 9 | B4: JAC | C4: No | D4: No | E4: Fixed Object | F4: 42698817 | G4: 956 | J4: DISTRICT_NBR,
A5: 6 | B5: FRA | C5: Yes | D5: Yes | E5: Parked Vehicle | F5: 66621 | G5: 1 | J5: NLF_COUNTY_CD,
A6: 8 | B6: BUT | C6: No | D6: Yes | E6: Left Turn | F6: 97149 | G6: 4
A7: 3 | B7: HUR | C7: Yes | D7: No | E7: Animal | F7: 30528 | G7: 3 | J7: --CASE WHEN ODOT_MAINTAINED_HWY_IND = 'Y' THEN 'Yes'
A8: 11 | B8: TUS | C8: Yes | D8: Yes | E8: Head On | F8: 2979690 | G8: 13 | J8: --ELSE 'No' END AS ODOT_MAINTAINED_HWY_IND,
A9: 6 | B9: PIC | C9: No | D9: No | E9: Pedalcycles | F9: 840585 | G9: 8
A10: 4 | B10: SUM | C10: Yes | D10: No | E10: Left Turn | F10: 10176 | G10: 1 | J10: CASE WHEN AREA_CODE = 99999 THEN 'No'
A11: 1 | B11: DEF | C11: Yes | D11: No | E11: Left Turn | F11: 3453861 | G11: 112 | J11: ELSE 'Yes' END AS URBAN_AREA,
A12: 10 | B12: ATH | C12: No | D12: No | E12: Other Object | F12: 122112 | G12: 12
A13: 7 | B13: MOT | C13: Yes | D13: Yes | E13: Rear End | F13: 539805 | G13: 15 | J13: --CASE WHEN FUNCTIONAL_CLASS_CD = 1 THEN 'Interstate Route'
A14: 4 | B14: POR | C14: Yes | D14: No | E14: Right Turn | F14: 1763787 | G14: 107 | J14: --WHEN FUNCTIONAL_CLASS_CD = 2 THEN 'Other Freeways or Expressways'
A15: 8 | B15: CLI | C15: Yes | D15: No | E15: Backing | F15: 518976 | G15: 51 | J15: --WHEN FUNCTIONAL_CLASS_CD = 3 THEN 'Other Principal Arterial Roads'
A16: 3 | B16: WAY | C16: Yes | D16: Yes | E16: Sideswipe - Passing | F16: 20352 | G16: 2 | J16: --WHEN FUNCTIONAL_CLASS_CD = 4 THEN 'Minor Arterial Roads'
A17: 7 | B17: LOG | C17: Yes | D17: No | E17: Rear End | F17: 2384952 | G17: 90 | J17: --WHEN FUNCTIONAL_CLASS_CD = 5 THEN 'Major Collector Roads'
A18: 6 | B18: UNI | C18: Yes | D18: Yes | E18: Overturning | F18: 178398 | G18: 3 | J18: --WHEN FUNCTIONAL_CLASS_CD = 6 THEN 'Minor Collector Roads'
A19: 4 | B19: POR | C19: No | D19: Yes | E19: Overturning | F19: 162657 | G19: 7 | J19: --WHEN FUNCTIONAL_CLASS_CD = 7 THEN 'Local Roads' END AS FUNCTIONAL_CLASS_CD,
A20: 6 | B20: FRA | C20: Yes | D20: No | E20: Parked Vehicle | F20: 45156 | G20: 1
A21: 2 | B21: HEN | C21: Yes | D21: Yes | E21: Rear End | F21: 653283 | G21: 11 | J21: CASE WHEN FREEWAY_IND = 'N' THEN 'No'
A22: 6 | B22: UNI | C22: Yes | D22: No | E22: Pedalcycles | F22: 540918 | G22: 13 | J22: WHEN FREEWAY_IND = 'Y' THEN 'Yes' END AS FREEWAY_IND,
A23: 11 | B23: JEF | C23: No | D23: No | E23: Rear End | F23: 3353214 | G23: 105
A24: 10 | B24: HOC | C24: No | D24: No | E24: Animal | F24: 4767852 | G24: 197 | J24: CASE WHEN CRASH_TYPE_CD = 0 THEN 'Unknown'
A25: 7 | B25: AUG | C25: Yes | D25: No | E25: Fixed Object | F25: 4048107 | G25: 129 | J25: WHEN CRASH_TYPE_CD = 1 THEN 'Head On'
A26: 8 | B26: CLE | C26: Yes | D26: Yes | E26: Overturning | F26: 460098 | G26: 1 | J26: WHEN CRASH_TYPE_CD = 2 THEN 'Rear End'
A27: 12 | B27: CUY | C27: Yes | D27: No | E27: Rear End | F27: 152481 | G27: 6 | J27: WHEN CRASH_TYPE_CD = 3 THEN 'Backing'
A28: 4 | B28: ATB | C28: Yes | D28: No | E28: Other Object | F28: 20352 | G28: 2 | J28: WHEN CRASH_TYPE_CD = 4 THEN 'Sideswipe - Meeting'
A29: 2 | B29: WIL | C29: No | D29: No | E29: Pedalcycles | F29: 1435626 | G29: 5 | J29: WHEN CRASH_TYPE_CD = 5 THEN 'Sideswipe - Passing'
A30: 10 | B30: HOC | C30: Yes | D30: No | E30: Animal | F30: 10176 | G30: 1 | J30: WHEN CRASH_TYPE_CD = 6 THEN 'Angle'
A31: 7 | B31: DAR | C31: Yes | D31: No | E31: Left Turn | F31: 10176 | G31: 1 | J31: WHEN CRASH_TYPE_CD = 7 THEN 'Parked Vehicle'
A32: 10 | B32: MEG | C32: Yes | D32: No | E32: Overturning | F32: 163770 | G32: 5 | J32: WHEN CRASH_TYPE_CD = 8 THEN 'Pedestrian'
A33: 9 | B33: ROS | C33: Yes | D33: Yes | E33: Rear End | F33: 5824662 | G33: 156 | J33: WHEN CRASH_TYPE_CD = 9 THEN 'Animal'
A34: 3 | B34: HUR | C34: Yes | D34: No | E34: Fixed Object | F34: 1830789 | G34: 50 | J34: WHEN CRASH_TYPE_CD = 10 THEN 'Train'
A35: 1 | B35: VAN | C35: Yes | D35: No | E35: Fixed Object | F35: 2078463 | G35: 37 | J35: WHEN CRASH_TYPE_CD = 11 THEN 'Pedalcycles'
A36: 8 | B36: WAR | C36: Yes | D36: No | E36: Unknown | F36: 75684 | G36: 4 | J36: WHEN CRASH_TYPE_CD = 12 THEN 'Other Non-Vehicle'
A37: 2 | B37: LUC | C37: Yes | D37: No | E37: Other Object | F37: 97149 | G37: 4 | J37: WHEN CRASH_TYPE_CD = 13 THEN 'Fixed Object'
A38: 4 | B38: SUM | C38: Yes | D38: No | E38: Rear End | F38: 296966580 | G38: 13900 | J38: WHEN CRASH_TYPE_CD = 14 THEN 'Other Object'
A39: 2 | B39: FUL | C39: Yes | D39: No | E39: Other Object | F39: 50880 | G39: 5 | J39: WHEN CRASH_TYPE_CD = 15 THEN 'Falling From Or In Vehicle'
A40: 10 | B40: MOE | C40: Yes | D40: No | E40: Other Non-Collision | F40: 55332 | G40: 2 | J40: WHEN CRASH_TYPE_CD = 16 THEN 'Overturning'
A41: 11 | B41: TUS | C41: No | D41: No | E41: Other Non-Vehicle | F41: 66621 | G41: 1 | J41: WHEN CRASH_TYPE_CD = 17 THEN 'Other Non-Collision'
A42: 6 | B42: FAY | C42: Yes | D42: Yes | E42: Overturning | F42: 10176 | G42: 1 | J42: WHEN CRASH_TYPE_CD = 18 THEN 'Left Turn'
A43: 6 | B43: MRW | C43: Yes | D43: Yes | E43: Overturning | F43: 121953 | G43: 3 | J43: WHEN CRASH_TYPE_CD = 19 THEN 'Right Turn' END AS CRASH_TYPE_CD,
A44: 7 | B44: MOT | C44: Yes | D44: No | E44: Pedestrian | F44: 1732050 | G44: 16
A45: 10 | B45: HOC | C45: Yes | D45: No | E45: Angle | F45: 10176 | G45: 1 | J45: sum(CASE WHEN CRASH_SEVERITY_CD = '1' THEN 460098
A46: 7 | B46: CLA | C46: Yes | D46: Yes | E46: Other Non-Collision | F46: 10176 | G46: 1 | J46: WHEN CRASH_SEVERITY_CD = '2' THEN 460098
A47: 4 | B47: SUM | C47: Yes | D47: Yes | E47: Right Turn | F47: 10176 | G47: 1 | J47: WHEN CRASH_SEVERITY_CD = '3' THEN 66621
A48: 1 | B48: HAN | C48: Yes | D48: Yes | E48: Other Object | F48: 411492 | G48: 37 | J48: WHEN CRASH_SEVERITY_CD = '4' THEN 45156
A49: 8 | B49: WAR | C49: Yes | D49: Yes | E49: Pedestrian | F49: 45156 | G49: 1 | J49: ELSE 10176 END ) AS CRASH_COST_NBR -- 2021 VALUES
A50: 3 | B50: CRA | C50: No | D50: No | E50: Backing | F50: 694146 | G50: 24
A51: 12 | B51: CUY | C51: Yes | D51: Yes | E51: Other Non-Collision | F51: 12678084 | G51: 385 | J51: ,count(DOCUMENT_NBR) as Crash_Count
A52: 4 | B52: TRU | C52: No | D52: No | E52: Angle | F52: 17678856 | G52: 363
A53: 10 | B53: GAL | C53: No | D53: No | E53: Pedestrian | F53: 1063614 | G53: 5 | J53: From warehouse.dbo.oh1_cr_crash_details
A54: 9 | B54: JAC | C54: Yes | D54: No | E54: Unknown | F54: 81408 | G54: 8 | J54: where CRASH_YR BETWEEN 2017 AND 2021
A55: 1 | B55: HAN | C55: No | D55: Yes | E55: Rear End | F55: 2869011 | G55: 60 | J55: Group by --CRASH_YR,
A56: 9 | B56: JAC | C56: No | D56: No | E56: Rear End | F56: 6520206 | G56: 105 | J56: DISTRICT_NBR,
A57: 4 | B57: POR | C57: No | D57: No | E57: Right Turn | F57: 1963761 | G57: 74 | J57: NLF_COUNTY_CD,
A58: 3 | B58: WAY | C58: No | D58: Yes | E58: Animal | F58: 996771 | G58: 71 | J58: AREA_CODE,
A59: 11 | B59: COL | C59: Yes | D59: Yes | E59: Parked Vehicle | F59: 65508 | G59: 3 | J59: --ODOT_MAINTAINED_HWY_IND,
A60: 8 | B60: WAR | C60: No | D60: No | E60: Sideswipe - Meeting | F60: 10176 | G60: 1 | J60: --FUNCTIONAL_CLASS_CD,
A61: 8 | B61: GRE | C61: Yes | D61: Yes | E61: Rear End | F61: 216876 | G61: 11 | J61: FREEWAY_IND,
A62: 11 | B62: COL | C62: Yes | D62: No | E62: Angle | F62: 4052178 | G62: 124 | J62: CRASH_TYPE_CD
A63: 11 | B63: COL | C63: Yes | D63: No | E63: Sideswipe - Passing | F63: 214650 | G63: 10
A64: 8 | B64: HAM | C64: No | D64: Yes | E64: Animal | F64: 152640 | G64: 15
A65: 2 | B65: LUC | C65: Yes | D65: No | E65: Pedestrian | F65: 2869551 | G65: 16
A66: 12 | B66: GEA | C66: Yes | D66: No | E66: Unknown | F66: 20352 | G66: 2
A67: 3 | B67: ERI | C67: Yes | D67: Yes | E67: Pedestrian | F67: 505254 | G67: 2
A68: 8 | B68: WAR | C68: Yes | D68: Yes | E68: Backing | F68: 61056 | G68: 6
A69: 3 | B69: HUR | C69: Yes | D69: No | E69: Parked Vehicle | F69: 86973 | G69: 3
A70: 4 | B70: STA | C70: Yes | D70: No | E70: Pedalcycles | F70: 20139885 | G70: 155
A71: 9 | B71: SCI | C71: No | D71: No | E71: Angle | F71: 15468150 | G71: 245
A72: 5 | B72: MUS | C72: Yes | D72: Yes | E72: Fixed Object | F72: 10176 | G72: 1
A73: 4 | B73: ATB | C73: Yes | D73: No | E73: Other Non-Collision | F73: 1161606 | G73: 34
A74: 9 | B74: LAW | C74: Yes | D74: No | E74: Sideswipe - Passing | F74: 4627440 | G74: 226
A75: 4 | B75: MAH | C75: Yes | D75: Yes | E75: Fixed Object | F75: 678087 | G75: 10
A76: 11 | B76: TUS | C76: Yes | D76: Yes | E76: Sideswipe - Passing | F76: 20352 | G76: 2
A77: 11 | B77: JEF | C77: No | D77: Yes | E77: Angle | F77: 505254 | G77: 2
A78: 2 | B78: HEN | C78: No | D78: Yes | E78: Other Non-Collision | F78: 168381 | G78: 11
A79: 4 | B79: MAH | C79: Yes | D79: No | E79: Angle | F79: 2392488 | G79: 52
A80: 7 | B80: MOT | C80: Yes | D80: No | E80: Fixed Object | F80: 4824567 | G80: 110
A81: 2 | B81: SAN | C81: Yes | D81: No | E81: Rear End | F81: 137853 | G81: 8
A82: 6 | B82: UNI | C82: No | D82: No | E82: Overturning | F82: 5483049 | G82: 53
A83: 6 | B83: MAD | C83: Yes | D83: No | E83: Rear End | F83: 208926 | G83: 6
A84: 4 | B84: SUM | C84: Yes | D84: No | E84: Pedalcycles | F84: 26268888 | G84: 246
A85: 8 | B85: BUT | C85: Yes | D85: No | E85: Sideswipe - Passing | F85: 55332 | G85: 2
A86: 4 | B86: MAH | C86: Yes | D86: No | E86: Sideswipe - Passing | F86: 10176 | G86: 1
A87: 6 | B87: MAD | C87: Yes | D87: Yes | E87: Parked Vehicle | F87: 10176 | G87: 1
A88: 11 | B88: TUS | C88: Yes | D88: No | E88: Other Object | F88: 437250 | G88: 25
A89: 11 | B89: COL | C89: Yes | D89: Yes | E89: Unknown | F89: 10176 | G89: 1
A90: 11 | B90: TUS | C90: Yes | D90: No | E90: Rear End | F90: 10176 | G90: 1
A91: 11 | B91: COL | C91: Yes | D91: No | E91: Right Turn | F91: 1601082 | G91: 55
A92: 11 | B92: TUS | C92: Yes | D92: Yes | E92: Sideswipe - Passing | F92: 30528 | G92: 3
A93: 10 | B93: HOC | C93: Yes | D93: No | E93: Parked Vehicle | F93: 20352 | G93: 2
A94: 8 | B94: HAM | C94: No | D94: Yes | E94: Parked Vehicle | F94: 85860 | G94: 5
A95: 7 | B95: DAR | C95: Yes | D95: Yes | E95: Right Turn | F95: 45156 | G95: 1
A96: 5 | B96: MUS | C96: No | D96: Yes | E96: Parked Vehicle | F96: 250743 | G96: 8
A97: 1 | B97: HAN | C97: No | D97: No | E97: Other Non-Collision | F97: 1573146 | G97: 111
A98: 8 | B98: BUT | C98: Yes | D98: No | E98: Backing | F98: 13415958 | G98: 987
A99: 8 | B99: BUT | C99: Yes | D99: Yes | E99: Fixed Object | F99: 141192 | G99: 7
A100: 1 | B100: PUT | C100: No | D100: No | E100: Animal | F100: 8382957 | G100: 772
A101: 8 | B101: HAM | C101: Yes | D101: No | E101: Other Non-Collision | F101: 27314238 | G101: 836
A102: 11 | B102: JEF | C102: Yes | D102: Yes | E102: Parked Vehicle | F102: 61056 | G102: 6
A103: 4 | B103: ATB | C103: Yes | D103: No | E103: Rear End | F103: 2844891 | G103: 82
A104: 2 | B104: SAN | C104: Yes | D104: Yes | E104: Backing | F104: 107325 | G104: 5
A105: 4 | B105: SUM | C105: Yes | D105: Yes | E105: Animal | F105: 55332 | G105: 2
A106: 2 | B106: HEN | C106: Yes | D106: No | E106: Right Turn | F106: 10176 | G106: 1
A107: 7 | B107: MIA | C107: Yes | D107: Yes | E107: Parked Vehicle | F107: 1476219 | G107: 40
A108: 2 | B108: SAN | C108: Yes | D108: No | E108: Left Turn | F108: 608970 | G108: 35
A109: 2 | B109: SAN | C109: Yes | D109: Yes | E109: Unknown | F109: 127677 | G109: 7
A110: 5 | B110: MUS | C110: No | D110: Yes | E110: Overturning | F110: 1047285 | G110: 13
A111: 8 | B111: GRE | C111: Yes | D111: No | E111: Right Turn | F111: 8547219 | G111: 433
A112: 10 | B112: GAL | C112: No | D112: No | E112: Sideswipe - Passing | F112: 2468856 | G112: 67
A113: 0 | B113: CUY | C113: Yes | D113: No | E113: Pedalcycles | F113: 66621 | G113: 1
A114: 12 | B114: CUY | C114: Yes | D114: No | E114: Right Turn | F114: 10176 | G114: 1
A115: 9 | B115: SCI | C115: Yes | D115: No | E115: Other Non-Collision | F115: 946956 | G115: 24
A116: 6 | B116: FAY | C116: Yes | D116: No | E116: Overturning | F116: 10176 | G116: 1
A117: 1 | B117: HAN | C117: No | D117: Yes | E117: Fixed Object | F117: 3420837 | G117: 130
A118: 3 | B118: MED | C118: No | D118: No | E118: Left Turn | F118: 16891884 | G118: 306
A119: 4 | B119: SUM | C119: Yes | D119: No | E119: Unknown | F119: 167268 | G119: 13
A120: 5 | B120: MUS | C120: Yes | D120: No | E120: Angle | F120: 37891155 | G120: 1193
A121: 10 | B121: MOE | C121: No | D121: No | E121: Overturning | F121: 5369364 | G121: 73
A122: 11 | B122: BEL | C122: No | D122: Yes | E122: Head On | F122: 96036 | G122: 6
A123: 1 | B123: WYA | C123: No | D123: Yes | E123: Fixed Object | F123: 860142 | G123: 30
A124: 4 | B124: MAH | C124: Yes | D124: Yes | E124: Rear End | F124: 40704 | G124: 4
A125: 2 | B125: LUC | C125: No | D125: Yes | E125: Head On | F125: 470274 | G125: 2
A126: 4 | B126: SUM | C126: Yes | D126: Yes | E126: Right Turn | F126: 30528 | G126: 3
A127: 10 | B127: HOC | C127: No | D127: No | E127: Rear End | F127: 5075184 | G127: 135
A128: 1 | B128: VAN | C128: Yes | D128: No | E128: Head On | F128: 1234221 | G128: 17
A129: 6 | B129: MAD | C129: No | D129: No | E129: Pedestrian | F129: 6348246 | G129: 20
A130: 4 | B130: SUM | C130: Yes | D130: No | E130: Other Non-Collision | F130: 55332 | G130: 2
A131: 3 | B131: HUR | C131: Yes | D131: No | E131: Left Turn | F131: 847581 | G131: 19
A132: 11 | B132: HAS | C132: Yes | D132: No | E132: Right Turn | F132: 20352 | G132: 2
A133: 10 | B133: ATH | C133: Yes | D133: Yes | E133: Fixed Object | F133: 10176 | G133: 1
A134: 4 | B134: MAH | C134: No | D134: No | E134: Angle | F134: 26326209 | G134: 437
A135: 3 | B135: CRA | C135: Yes | D135: No | E135: Pedalcycles | F135: 245019 | G135: 4
A136: 4 | B136: STA | C136: Yes | D136: No | E136: Sideswipe - Meeting | F136: 10176 | G136: 1
A137: 3 | B137: LOR | C137: Yes | D137: No | E137: Head On | F137: 187461 | G137: 6
A138: 4 | B138: STA | C138: Yes | D138: No | E138: Backing | F138: 19174716 | G138: 1639
A139: 8 | B139: BUT | C139: Yes | D139: No | E139: Pedalcycles | F139: 1676718 | G139: 14
A140: 11 | B140: COL | C140: Yes | D140: No | E140: Rear End | F140: 8572977 | G140: 301
A141: 3 | B141: HUR | C141: Yes | D141: No | E141: Fixed Object | F141: 3253473 | G141: 97
A142: 1 | B142: ALL | C142: Yes | D142: Yes | E142: Backing | F142: 127677 | G142: 7
A143: 7 | B143: MOT | C143: Yes | D143: Yes | E143: Left Turn | F143: 10176 | G143: 1
A144: 4 | B144: POR | C144: Yes | D144: Yes | E144: Sideswipe - Passing | F144: 424689 | G144: 14
A145: 10 | B145: HOC | C145: Yes | D145: No | E145: Head On | F145: 1050783 | G145: 21
A146: 11 | B146: BEL | C146: Yes | D146: Yes | E146: Right Turn | F146: 10176 | G146: 1
A147: 7 | B147: MOT | C147: Yes | D147: No | E147: Other Object | F147: 5217456 | G147: 119
A148: 7 | B148: LOG | C148: Yes | D148: Yes | E148: Unknown | F148: 10176 | G148: 1
A149: 10 | B149: WAS | C149: Yes | D149: Yes | E149: Overturning | F149: 45156 | G149: 1
A150: 8 | B150: CLI | C150: Yes | D150: Yes | E150: Angle | F150: 121953 | G150: 3
A151: 6 | B151: PIC | C151: No | D151: Yes | E151: Overturning | F151: 188574 | G151: 4
A152: 4 | B152: POR | C152: Yes | D152: Yes | E152: Sideswipe - Passing | F152: 3890046 | G152: 179
A153: 8 | B153: HAM | C153: Yes | D153: No | E153: Other Non-Collision | F153: 1123287 | G153: 35
A154: 7 | B154: CLA | C154: Yes | D154: No | E154: Unknown | F154: 40704 | G154: 4
A155: 4 | B155: SUM | C155: Yes | D155: Yes | E155: Animal | F155: 30528 | G155: 3
A156: 8 | B156: WAR | C156: Yes | D156: Yes | E156: Other Object | F156: 789117 | G156: 72
A157: 4 | B157: STA | C157: Yes | D157: Yes | E157: Overturning | F157: 2337363 | G157: 34
A158: 6 | B158: PIC | C158: No | D158: No | E158: Backing | F158: 1018236 | G158: 71
A159: 3 | B159: HUR | C159: Yes | D159: No | E159: Backing | F159: 193344 | G159: 19
A160: 3 | B160: CRA | C160: No | D160: No | E160: Animal | F160: 11084589 | G160: 850
A161: 8 | B161: CLE | C161: No | D161: No | E161: Rear End | F161: 20766303 | G161: 686
A162: 8 | B162: WAR | C162: Yes | D162: Yes | E162: Left Turn | F162: 55332 | G162: 2
A163: 6 | B163: MAD | C163: Yes | D163: Yes | E163: Rear End | F163: 30528 | G163: 3
A164: 2 | B164: WOO | C164: Yes | D164: No | E164: Overturning | F164: 111777 | G164: 2
A165: 8 | B165: WAR | C165: No | D165: No | E165: Other Object | F165: 122112 | G165: 12
A166: 1 | B166: HAN | C166: Yes | D166: No | E166: Sideswipe - Passing | F166: 213537 | G166: 12
A167: 5 | B167: PER | C167: Yes | D167: No | E167: Backing | F167: 61056 | G167: 6
A168: 4 | B168: ATB | C168: No | D168: No | E168: Overturning | F168: 9627954 | G168: 67
A169: 8 | B169: CLE | C169: Yes | D169: No | E169: Rear End | F169: 730239 | G169: 22
A170: 8 | B170: WAR | C170: Yes | D170: Yes | E170: Other Non-Collision | F170: 456648 | G170: 38
A171: 10 | B171: HOC | C171: No | D171: No | E171: Right Turn | F171: 717249 | G171: 29
A172: 5 | B172: MUS | C172: Yes | D172: Yes | E172: Head On | F172: 500802 | G172: 5
A173: 6 | B173: FRA | C173: No | D173: Yes | E173: Other Non-Collision | F173: 158205 | G173: 10
A174: 9 | B174: SCI | C174: No | D174: Yes | E174: Sideswipe - Passing | F174: 76797 | G174: 2
A175: 4 | B175: TRU | C175: Yes | D175: Yes | E175: Right Turn | F175: 452832 | G175: 12
A176: 8 | B176: HAM | C176: Yes | D176: Yes | E176: Fixed Object | F176: 2430537 | G176: 68
A177: 6 | B177: FRA | C177: Yes | D177: Yes | E177: Left Turn | F177: 1153926 | G177: 7
A178: 2 | B178: SAN | C178: Yes | D178: No | E178: Unknown | F178: 20352 | G178: 2
A179: 11 | B179: HAS | C179: Yes | D179: No | E179: Animal | F179: 10176 | G179: 1
A180: 10 | B180: WAS | C180: No | D180: No | E180: Unknown | F180: 126564 | G180: 9
A181: 5 | B181: COS | C181: Yes | D181: No | E181: Head On | F181: 965082 | G181: 25
A182: 7 | B182: SHE | C182: Yes | D182: No | E182: Angle | F182: 65508 | G182: 3
A183: 10 | B183: GAL | C183: Yes | D183: No | E183: Other Object | F183: 50880 | G183: 5
A184: 8 | B184: HAM | C184: Yes | D184: No | E184: Fixed Object | F184: 10176 | G184: 1
A185: 4 | B185: MAH | C185: Yes | D185: Yes | E185: Animal | F185: 152481 | G185: 6
A186: 11 | B186: JEF | C186: Yes | D186: No | E186: Other Object | F186: 10176 | G186: 1
A187: 6 | B187: MAD | C187: Yes | D187: No | E187: Fixed Object | F187: 117501 | G187: 6
A188: 6 | B188: FAY | C188: Yes | D188: No | E188: Sideswipe - Passing | F188: 20352 | G188: 2
A189: 5 | B189: LIC | C189: No | D189: No | E189: Parked Vehicle | F189: 2212707 | G189: 73
A190: 4 | B190: STA | C190: Yes | D190: Yes | E190: Other Non-Collision | F190: 20352 | G190: 2
A191: 2 | B191: SAN | C191: Yes | D191: No | E191: Head On | F191: 3228207 | G191: 25
A192: 2 | B192: SAN | C192: Yes | D192: No | E192: Train | F192: 560586 | G192: 4
A193: 7 | B193: MOT | C193: No | D193: No | E193: Right Turn | F193: 630276 | G193: 26
A194: 7 | B194: DAR | C194: Yes | D194: No | E194: Animal | F194: 10176 | G194: 1
A195: 4 | B195: TRU | C195: Yes | D195: Yes | E195: Unknown | F195: 148029 | G195: 9
A196: 1 | B196: HAN | C196: Yes | D196: No | E196: Animal | F196: 20352 | G196: 2
A197: 8 | B197: CLE | C197: Yes | D197: Yes | E197: Left Turn | F197: 155820 | G197: 5
A198: 11 | B198: TUS | C198: Yes | D198: No | E198: Pedestrian | F198: 7393830 | G198: 39
A199: 2 | B199: WOO | C199: No | D199: No | E199: Other Object | F199: 489243 | G199: 28
A200: 11 | B200: JEF | C200: Yes | D200: No | E200: Other Non-Collision | F200: 1218369 | G200: 52
... 8243 more rows

Sheet Import (hidden)
A1: Application ID: | C1: =IF('Safety Application'!A115="","Not Assigned",'Safety Application'!A115) -> 202303D08-05
A4: General Application Data
A5: https://extranet.dot.state.oh.us/divisions/Planning/plan/HSIP_applications/Lists/AppData/ImportView.aspx
A6: Title | B6: Cycle | C6: AppID | D6: District | E6: CountyCd | F6: Sponsor | G6: Project Name | H6: PID | I6: ProjectManager | J6: PM_Phone | K6: PM_Email | L6: Applicant_Name | M6: Applicant_Title | N6: Applicant_Phone | O6: ApplicationDt | P6: RouteNbr | Q6: RouteName | R6: Blog | S6: Elog | T6: FolderPath
A7: =C7 -> 202303D08-05 | B7: =LEFT(C7,6) -> 202303 | C7: =C1 -> 202303D08-05 | D7: ='Safety Application'!C10 -> 8 | E7: =LEFT('Safety Application'!H10,3) -> BUT | F7: =IF('Safety Application'!D2="","",'Safety Application'!D2) -> ODOT D8 | G7: =IF('Safety Application'!D3="","",'Safety Application'!D3) -> SR-747 at SR-129 Interchanges and Grandin Ridge Drive/Logsdons Meadow Drive | H7: =IF('Safety Application'!D4="","",'Safety Application'!D4) -> TBD | I7: =IF('Safety Application'!D5="","",'Safety Application'!D5) -> Brianne Hetzel | J7: =IF('Safety Application'!D6="","",'Safety Application'!D6) -> 513-933-6624 | K7: =IF('Safety Application'!D7="","",'Safety Application'!D7) -> brianne.hetzel@dot.ohio.gov | L7: =IF('Safety Application'!A106="","",'Safety Application'!A106) -> Brianne Hetzel | M7: =IF('Safety Application'!F106="","",'Safety Application'!F106) -> D8 Traffic Studies Engineer | N7: ='Safety Application'!I106 -> 513-933-6624 | O7: =IF('Safety Application'!I108="","",MONTH('Safety Application'!I108)&"/"&DAY('Safety Application'!I108)&"/"&YEAR('Safety Application'!I108)) -> 3/31/2023 | P7: ='Safety Application'!C11 -> SR-747R | Q7: ='Safety Application'!H11 -> SR-747 | R7: ='Safety Application'!C12 -> 5.43 | S7: ='Safety Application'!H12 -> 5.65 | T7: =IF(LEFT('Safety Application'!A117,1)="\",'Safety Application'!A117,"\\itcfs007.dot.state.oh.us\odrive"&MID('Safety Application'!A117,FIND("\",'Safety Application'!A117,1),100)) -> \\itcfs007.dot.state.oh.us\odrive\SAFETY\D08\SAFETY APPLICATIONS\202303 Applications\202303D08-05 BUT SR-747 @ SR-129 interchange
A10: Project Priority
A11: https://extranet.dot.state.oh.us/divisions/Planning/plan/HSIP_applications/Lists/PriorityInfo/ImportView.aspx
A12: AppID | B12: PriorityText
A13: =C1 -> 202303D08-05 | B13: =IF('Safety Application'!A22="","",'Safety Application'!A22) -> SuburbanNonFwy #36 (2020 SA List) SuburbanNonFwy #160 (2021 SA List)
A16: Application Summary of Crash Patterns and Recommended Countermeasures
A17: https://extranet.dot.state.oh.us/divisions/Planning/plan/HSIP_applications/Lists/CrashPatterns/ImportView.aspx
A18: AppID | B18: SummaryText | C18: RecCountermeasure
A19: =A13 -> 202303D08-05 | B19: ='Safety Application'!A18 -> Crash data between 2018 and 2020 was obtained using ODOT’s TIMS website. A total of 100 crashes occurred within the study area with three involving serious injuries, thirteen involving minor injuries, and ten involving possible injuries. The data shows that rear end and left turn crashes happen more frequently in the study area than is typical. Crashes were higher on weekdays, especially on Monday (19%) and Tuesday (18%) and were most common between 2 PM and 7 PM. Following Too Closely/ACDA (Assured Clear Distance Ahead) was the highest contributing factor (54%) of crashes. Failure to Yield was the next most common contributing factor (23%), with six from angle crashes and 17 from left turn crashes indicating drivers were unable to properly select an appropriate gap in traffic. Pavement friction is likely not a significant contributing factor since 68% of the crashes occurred on dry pavement. The 2021-2022 updated crash data shows 25 crashes occurring in 2021 and 35 crashes occurring in 2022, with a nearly 32% injury rate. The highest concentration of crashes was still rear end and left turn crashes. There were 8 left turn crashes at the WB ramp and 10 left turn crashes at the EB ramp. Rear ends are primarily in the SB direction at both ramps due to queing of the left turns. | C19: ='Safety Application'!A20 -> The SR-129 EB ramp signal operates poorly during the AM peak, with several movements underperforming (LOS E/F). Additionally, the southbound left-turn movement shows LOS D, however, the 95% queue exceeds the existing storage. During the PM peak, this trend occurs again for the southbound left, while the rest of the intersection operates functionally (except the WB right-turn, with LOS E). The SR-129 WB ramp signal operates well during the AM peak and in the PM peak hours, except the WB approach during the AM Peak (LOS E), and the 95% queue exceeds the existing storage in the PM peak. The signalized ramp intersections operate poorly over all time periods, with several movements underperforming (LOS E/F) and 95% queues exceeding existing storage. Convert the interchange to a Diverging Diamond Interchange (DDI). All movements for both the AM and PM peak hours show acceptable levels of service (LOS D or better) in the design year. Furthermore, all V/C ratios are under 1.0, and all 95th Percentile Queues are within the existing/proposed storage lengths.
A22: Application Crash Data
A23: https://extranet.dot.state.oh.us/divisions/Planning/plan/HSIP_applications/Lists/CrashData/ImportView.aspx
A24: AppID | B24: Pred_Ex_KA | C24: Pred_Ex_B | D24: Pred_Ex_C | E24: Pred_Ex_O | F24: Exp_Ex_KA | G24: Exp_Ex_B | H24: Exp_Ex_C | I24: Exp_Ex_O | J24: PSI_KA | K24: PSI_B | L24: PSI_C | M24: PSI_O | N24: Prop_Type | O24: Prop_KA | P24: Prop_B | Q24: Prop_C | R24: Prop_O | S24: Obs_KA | T24: Obs_B | U24: Obs_C | V24: Obs_O | W24: Obs_People_K | X24: Obs_People_A | Y24: Obs_People_B | Z24: Obs_People_C
A25: =A19 -> 202303D08-05 | B25: ='Safety Application'!F26 -> 0.4849 | C25: ='Safety Application'!G26 -> 1.9639 | D25: ='Safety Application'!H26 -> 2.9813 | E25: ='Safety Application'!I26 -> 14.0863 | F25: ='Safety Application'!F27 -> 0.5222 | G25: ='Safety Application'!G27 -> 2.1368 | H25: ='Safety Application'!H27 -> 3.2578 | I25: ='Safety Application'!I27 -> 18.3668 | J25: ='Safety Application'!F28 -> 0.0373 | K25: ='Safety Application'!G28 -> 0.1729 | L25: ='Safety Application'!H28 -> 0.2765 | M25: ='Safety Application'!I28 -> 4.2805 | N25: =IF(ScoringCalculations!$AB$1="ECAT - Change in base SPF","Predicted","Expected") -> Predicted | O25: ='Safety Application'!F29 -> 0.3464 | P25: ='Safety Application'!G29 -> 1.4201 | Q25: ='Safety Application'!H29 -> 2.2084 | R25: ='Safety Application'!I29 -> 12.4259 | S25: ='Safety Application'!F30 -> 1 | T25: ='Safety Application'!G30 -> 4.3333 | U25: ='Safety Application'!H30 -> 3.3333 | V25: ='Safety Application'!I30 -> 24.6667 | W25: ='Safety Application'!F33 -> 0 | X25: ='Safety Application'!G33 -> 1.6667 | Y25: ='Safety Application'!H33 -> 5.3333 | Z25: ='Safety Application'!I33 -> 9
A28: Application Scoring
A29: https://extranet.dot.state.oh.us/divisions/Planning/plan/HSIP_applications/Lists/AppScoring/ImportView.aspx
A30: AppID | B30: Expected_Value | C30: Expected_Points | D30: ObservedFSI_Value | E30: ObservedFSI_Points | F30: PercPSI_Value | G30: PercPSI_Points | H30: RSI_Value | I30: RSI_Points | J30: EPDO_Value | K30: EPDO_Points | L30: VCRatio_Value | M30: VCRatio_Points | N30: BCRatio_Value | O30: BCRatio_Points | P30: FundRequest_Value | Q30: FundRequest_Points | R30: LocEquity_Value | S30: LocEquity_Points | T30: BCRatio_Safety_Value | U30: NetBenefit | V30: NetPV_Project | W30: NetPV_Safety
A31: =A25 -> 202303D08-05 | D31: ='Safety Application'!H37 -> 0.05 | E31: ='Safety Application'!I37 -> 10 | F31: ='Safety Application'!H38 -> 0.1965 | G31: ='Safety Application'!I38 -> 14 | H31: ='Safety Application'!H39 -> 28889.8 | I31: ='Safety Application'!I39 -> 8 | J31: ='Safety Application'!H40 -> 2.9 | K31: ='Safety Application'!I40 -> 8 | N31: ='Safety Application'!I93 -> 0.28 | R31: ='Safety Application'!H41 -> 0 | S31: ='Safety Application'!I41 ->  | T31: ='Safety Application'!I94 -> 6.02 | U31: ='Safety Application'!I92 -> -4623370.78 | V31: ='Safety Application'!E92 -> 6430000 | W31: ='Safety Application'!E93 -> 1806629.23
A34: Strategic Highway Safety Plan
A35: https://extranet.dot.state.oh.us/divisions/Planning/plan/HSIP_applications/Lists/SHSP/ImportView.aspx
A36: AppID | B36: Functional Class | C36: MajAADT | D36: OhioEmpArea | E36: OhioEmpSub | F36: FHWAEmpArea | G36: FHWA_ImprovCat | H36: FHWA_ImprovSubCat
A37: =A31 -> 202303D08-05 | B37: ='Safety Application'!D48 -> 3 - Other Principal Arterial Roadway | C37: ='Safety Application'!D49 -> 26368 | D37: ='Safety Application'!E54 -> Serious Crash Types | E37: ='Safety Application'!E55 -> Intersection | F37: ='Safety Application'!E56 -> Improving the design and operation of highway intersections | G37: ='Safety Application'!E57 -> Interchange design | H37: ='Safety Application'!E58 -> Interchange design - other
A40: Application Work Locations
A41: https://extranet.dot.state.oh.us/divisions/Planning/plan/HSIP_applications/Lists/WorkLocations/ImportView.aspx
A42: RouteID | B42: AppID | C42: Location ID | D42: NLFID | E42: Begin Logpoint | F42: End Logpoint | G42: startLatitude | H42: startLongitude | I42: endLatitude | J42: endLongitude | K42: Termini
A43: =IF(D43="","",MID(D43,5,2)&"-"&IFERROR(MID(D43,7,5)*1,MID(D43,7,5))&IF(LEFT(D43,1)="S",IF(RIGHT(D43,2)="*C","",MID(D43,13,1)),IF(RIGHT(D43,3)="**C","",MID(D43,12,1)))) -> SR-747 | B43: =IF(C43="","",$A$37) -> 202303D08-05 | C43: =IF(D43="","",1) -> 1 | D43: =IF('Safety Application'!A62=0,"",'Safety Application'!A62) -> SBUTSR00747**C | E43: =IF(D43="","",'Safety Application'!C62) -> 5.43 | F43: =IF(D43="","",'Safety Application'!D62) -> 5.65 | G43: =IF(D43="","",'Safety Application'!E62) -> 0 | H43: =IF(D43="","",'Safety Application'!F62) -> 0 | I43: =IF(D43="","",'Safety Application'!AA62) -> 0 | J43: =IF(D43="","",'Safety Application'!AB62) -> 0 | K43: =IF(D43="","",'Safety Application'!G62) -> 0
A44: =IF(D44="","",MID(D44,5,2)&"-"&IFERROR(MID(D44,7,5)*1,MID(D44,7,5))&IF(LEFT(D44,1)="S",IF(RIGHT(D44,2)="*C","",MID(D44,13,1)),IF(RIGHT(D44,3)="**C","",MID(D44,12,1)))) ->  | B44: =IF(C44="","",$A$37) ->  | C44: =IF(D44="","",C43+1) ->  | D44: =IF('Safety Application'!A63=0,"",'Safety Application'!A63) ->  | E44: =IF(D44="","",'Safety Application'!C63) ->  | F44: =IF(D44="","",'Safety Application'!D63) ->  | G44: =IF(D44="","",'Safety Application'!E63) ->  | H44: =IF(D44="","",'Safety Application'!F63) ->  | K44: =IF(D44="","",'Safety Application'!G63) -> 
C45: =IF(D45="","",C44+1) ->  | D45: =IF('Safety Application'!A64=0,"",'Safety Application'!A64) ->  | E45: =IF(D45="","",'Safety Application'!C64) ->  | F45: =IF(D45="","",'Safety Application'!D64) ->  | G45: =IF(D45="","",'Safety Application'!E64) ->  | H45: =IF(D45="","",'Safety Application'!F64) ->  | K45: =IF(D45="","",'Safety Application'!G64) -> 
D46: =IF('Safety Application'!A65=0,"",'Safety Application'!A65) ->  | E46: =IF(D46="","",'Safety Application'!C65) ->  | F46: =IF(D46="","",'Safety Application'!D65) ->  | G46: =IF(D46="","",'Safety Application'!E65) ->  | H46: =IF(D46="","",'Safety Application'!F65) ->  | K46: =IF(D46="","",'Safety Application'!G65) -> 
D47: =IF('Safety Application'!A66=0,"",'Safety Application'!A66) ->  | E47: =IF(D47="","",'Safety Application'!C66) ->  | F47: =IF(D47="","",'Safety Application'!D66) ->  | G47: =IF(D47="","",'Safety Application'!E66) ->  | H47: =IF(D47="","",'Safety Application'!F66) ->  | K47: =IF(D47="","",'Safety Application'!G66) -> 
D48: =IF('Safety Application'!A67=0,"",'Safety Application'!A67) ->  | E48: =IF(D48="","",'Safety Application'!C67) ->  | F48: =IF(D48="","",'Safety Application'!D67) ->  | G48: =IF(D48="","",'Safety Application'!E67) ->  | H48: =IF(D48="","",'Safety Application'!F67) ->  | K48: =IF(D48="","",'Safety Application'!G67) -> 
D49: =IF('Safety Application'!A68=0,"",'Safety Application'!A68) ->  | E49: =IF(D49="","",'Safety Application'!C68) ->  | F49: =IF(D49="","",'Safety Application'!D68) ->  | G49: =IF(D49="","",'Safety Application'!E68) ->  | H49: =IF(D49="","",'Safety Application'!F68) ->  | K49: =IF(D49="","",'Safety Application'!G68) -> 
D50: =IF('Safety Application'!A69=0,"",'Safety Application'!A69) ->  | E50: =IF(D50="","",'Safety Application'!C69) ->  | F50: =IF(D50="","",'Safety Application'!D69) ->  | G50: =IF(D50="","",'Safety Application'!E69) ->  | H50: =IF(D50="","",'Safety Application'!F69) ->  | K50: =IF(D50="","",'Safety Application'!G69) -> 
D51: =IF('Safety Application'!A70=0,"",'Safety Application'!A70) ->  | E51: =IF(D51="","",'Safety Application'!C70) ->  | F51: =IF(D51="","",'Safety Application'!D70) ->  | G51: =IF(D51="","",'Safety Application'!E70) ->  | H51: =IF(D51="","",'Safety Application'!F70) ->  | K51: =IF(D51="","",'Safety Application'!G70) -> 
D52: =IF('Safety Application'!A71=0,"",'Safety Application'!A71) ->  | E52: =IF(D52="","",'Safety Application'!C71) ->  | F52: =IF(D52="","",'Safety Application'!D71) ->  | G52: =IF(D52="","",'Safety Application'!E71) ->  | H52: =IF(D52="","",'Safety Application'!F71) ->  | K52: =IF(D52="","",'Safety Application'!G71) -> 
A54: Project Funding
A55: https://extranet.dot.state.oh.us/divisions/Planning/plan/HSIP_applications/Lists/Funding/ImportView.aspx
A56: AppID | B56: FY_SafetyStudy | C56: FY_IMS | D56: FY_PE_Enviro | E56: FY_PE_Design | F56: FY_ROW | G56: FY_Const | H56: NewSafety_AMT_SafetyStudy | I56: NewSafety_AMT_IMS | J56: NewSafety_AMT_PE_Enviro | K56: NewSafety_AMT_PE_Design | L56: NewSafety_AMT_ROW | M56: NewSafety_AMT_Const | N56: PrevSafety_AMT_SafetyStudy | O56: PrevSafety_AMT_IMS | P56: PrevSafety_AMT_PE_Enviro | Q56: PrevSafety_AMT_PE_Design | R56: PrevSafety_AMT_ROW | S56: PrevSafety_AMT_Const | T56: Sponsor_AMT_SafetyStudy | U56: Sponsor_AMT_IMS | V56: Sponsor_AMT_PE_Enviro | W56: Sponsor_AMT_PE_Design | X56: Sponsor_AMT_ROW | Y56: Sponsor_AMT_Const | Z56: Alt1_Source | AA56: Alt1_AMT_SafetyStudy | AB56: Alt1_AMT_IMS | AC56: Alt1_AMT_PE_Enviro | AD56: Alt1_AMT_PE_Design | AE56: Alt1_AMT_ROW | AF56: Alt1_AMT_Const | AG56: Alt2_Source | AH56: Alt2_AMT_SafetyStudy | AI56: Alt2_AMT_IMS | AJ56: Alt2_AMT_PE_Enviro | AK56: Alt2_AMT_PE_Design | AL56: Alt2_AMT_ROW | AM56: Alt2_AMT_Const | AN56: Alt3_Source | AO56: Alt3_AMT_SafetyStudy | AP56: Alt3_AMT_IMS | AQ56: Alt3_AMT_PE_Enviro | AR56: Alt3_AMT_PE_Design | AS56: Alt3_AMT_ROW | AT56: Alt3_AMT_Const | AU56: Alt4_Source | AV56: Alt4_AMT_SafetyStudy | AW56: Alt4_AMT_IMS | AX56: Alt4_AMT_PE_Enviro | AY56: Alt4_AMT_PE_Design | AZ56: Alt4_AMT_ROW | BA56: Alt4_AMT_Const | BB56: Alt5_Source | BC56: Alt5_AMT_SafetyStudy | BD56: Alt5_AMT_IMS | BE56: Alt5_AMT_PE_Enviro | BF56: Alt5_AMT_PE_Design | BG56: Alt5_AMT_ROW | BH56: Alt5_AMT_Const | BI56: Alt6_Source | BJ56: Alt6_AMT_SafetyStudy | BK56: Alt6_AMT_IMS | BL56: Alt6_AMT_PE_Enviro | BM56: Alt6_AMT_PE_Design | BN56: Alt6_AMT_ROW | BO56: Alt6_AMT_Const | BP56: Alt7_Source | BQ56: Alt7_AMT_SafetyStudy | BR56: Alt7_AMT_IMS | BS56: Alt7_AMT_PE_Enviro | BT56: Alt7_AMT_PE_Design | BU56: Alt7_AMT_ROW | BV56: Alt7_AMT_Const | BW56: AddtlDetails
A57: =A37 -> 202303D08-05 | B57: =IF('Safety Application'!D75=0,"",'Safety Application'!D75) ->  | C57: =IF('Safety Application'!E75=0,"",'Safety Application'!E75) ->  | D57: =IF('Safety Application'!F75=0,"",'Safety Application'!F75) -> 2024 | E57: =IF('Safety Application'!G75=0,"",'Safety Application'!G75) ->  | F57: =IF('Safety Application'!H75=0,"",'Safety Application'!H75) ->  | G57: =IF('Safety Application'!I75=0,"",'Safety Application'!I75) ->  | H57: =IF('Safety Application'!D78=0,"",'Safety Application'!D78) ->  | I57: =IF('Safety Application'!E78=0,"",'Safety Application'!E78) ->  | J57: =IF('Safety Application'!F78=0,"",'Safety Application'!F78) -> 300000 | K57: =IF('Safety Application'!G78=0,"",'Safety Application'!G78) ->  | L57: =IF('Safety Application'!H78=0,"",'Safety Application'!H78) ->  | M57: =IF('Safety Application'!I78=0,"",'Safety Application'!I78) ->  | N57: =IF('Safety Application'!D77=0,"",'Safety Application'!D77) ->  | O57: =IF('Safety Application'!E77=0,"",'Safety Application'!E77) ->  | P57: =IF('Safety Application'!F77=0,"",'Safety Application'!F77) ->  | Q57: =IF('Safety Application'!G77=0,"",'Safety Application'!G77) ->  | R57: =IF('Safety Application'!H77=0,"",'Safety Application'!H77) ->  | S57: =IF('Safety Application'!I77=0,"",'Safety Application'!I77) ->  | T57: =IF('Safety Application'!D79=0,"",'Safety Application'!D79) ->  | U57: =IF('Safety Application'!E79=0,"",'Safety Application'!E79) ->  | V57: =IF('Safety Application'!F79=0,"",'Safety Application'!F79) ->  | W57: =IF('Safety Application'!G79=0,"",'Safety Application'!G79) ->  | X57: =IF('Safety Application'!H79=0,"",'Safety Application'!H79) ->  | Y57: =IF('Safety Application'!I79=0,"",'Safety Application'!I79) ->  | Z57: =IF('Safety Application'!A80=0,"",'Safety Application'!A80) ->  | AA57: =IF('Safety Application'!D80=0,"",'Safety Application'!D80) ->  | AB57: =IF('Safety Application'!E80=0,"",'Safety Application'!E80) ->  | AC57: =IF('Safety Application'!F80=0,"",'Safety Application'!F80) ->  | AD57: =IF('Safety Application'!G80=0,"",'Safety Application'!G80) ->  | AE57: =IF('Safety Application'!H80=0,"",'Safety Application'!H80) ->  | AF57: =IF('Safety Application'!I80=0,"",'Safety Application'!I80) ->  | AG57: =IF('Safety Application'!A81=0,"",'Safety Application'!A81) ->  | AH57: =IF('Safety Application'!D81=0,"",'Safety Application'!D81) ->  | AI57: =IF('Safety Application'!E81=0,"",'Safety Application'!E81) ->  | AJ57: =IF('Safety Application'!F81=0,"",'Safety Application'!F81) ->  | AK57: =IF('Safety Application'!G81=0,"",'Safety Application'!G81) ->  | AL57: =IF('Safety Application'!H81=0,"",'Safety Application'!H81) ->  | AM57: =IF('Safety Application'!I81=0,"",'Safety Application'!I81) ->  | AN57: =IF('Safety Application'!A82=0,"",'Safety Application'!A82) ->  | AO57: =IF('Safety Application'!D82=0,"",'Safety Application'!D82) ->  | AP57: =IF('Safety Application'!E82=0,"",'Safety Application'!E82) ->  | AQ57: =IF('Safety Application'!F82=0,"",'Safety Application'!F82) ->  | AR57: =IF('Safety Application'!G82=0,"",'Safety Application'!G82) ->  | AS57: =IF('Safety Application'!H82=0,"",'Safety Application'!H82) ->  | AT57: =IF('Safety Application'!I82=0,"",'Safety Application'!I82) ->  | AU57: =IF('Safety Application'!A83=0,"",'Safety Application'!A83) ->  | AV57: =IF('Safety Application'!D83=0,"",'Safety Application'!D83) ->  | AW57: =IF('Safety Application'!E83=0,"",'Safety Application'!E83) ->  | AX57: =IF('Safety Application'!F83=0,"",'Safety Application'!F83) ->  | AY57: =IF('Safety Application'!G83=0,"",'Safety Application'!G83) ->  | AZ57: =IF('Safety Application'!H83=0,"",'Safety Application'!H83) ->  | BA57: =IF('Safety Application'!I83=0,"",'Safety Application'!I83) ->  | BB57: =IF('Safety Application'!A84=0,"",'Safety Application'!A84) ->  | BC57: =IF('Safety Application'!D84=0,"",'Safety Application'!D84) ->  | BD57: =IF('Safety Application'!E84=0,"",'Safety Application'!E84) ->  | BE57: =IF('Safety Application'!F84=0,"",'Safety Application'!F84) ->  | BF57: =IF('Safety Application'!G84=0,"",'Safety Application'!G84) ->  | BG57: =IF('Safety Application'!H84=0,"",'Safety Application'!H84) ->  | BH57: =IF('Safety Application'!I84=0,"",'Safety Application'!I84) ->  | BI57: =IF('Safety Application'!A85=0,"",'Safety Application'!A85) ->  | BJ57: =IF('Safety Application'!D85=0,"",'Safety Application'!D85) ->  | BK57: =IF('Safety Application'!E85=0,"",'Safety Application'!E85) ->  | BL57: =IF('Safety Application'!F85=0,"",'Safety Application'!F85) ->  | BM57: =IF('Safety Application'!G85=0,"",'Safety Application'!G85) ->  | BN57: =IF('Safety Application'!H85=0,"",'Safety Application'!H85) ->  | BO57: =IF('Safety Application'!I85=0,"",'Safety Application'!I85) ->  | BP57: =IF('Safety Application'!A86=0,"",'Safety Application'!A86) ->  | BQ57: =IF('Safety Application'!D86=0,"",'Safety Application'!D86) ->  | BR57: =IF('Safety Application'!E86=0,"",'Safety Application'!E86) ->  | BS57: =IF('Safety Application'!F86=0,"",'Safety Application'!F86) ->  | BT57: =IF('Safety Application'!G86=0,"",'Safety Application'!G86) ->  | BU57: =IF('Safety Application'!H86=0,"",'Safety Application'!H86) ->  | BV57: =IF('Safety Application'!I86=0,"",'Safety Application'!I86) ->  | BW57: =IF('Safety Application'!A89=0,"",'Safety Application'!A89) -> Funding for feasibility study only to get better cost estimate and right of way impacts/utility impacts for the DDI. Also consider alternative for loop ramps for the existing left turn movements from SR-747 NB and SB to SR-129 EB/WB.
A60: Project Development
A61: https://extranet.dot.state.oh.us/divisions/Planning/plan/HSIP_applications/Lists/ProjectDevelopment/ImportView.aspx
A62: AppID | B62: SafetyStudy_CompBy | C62: SafetyStudy_CompDt | D62: IMS_CompBy | E62: IMS__CompDt | F62: PE_Enviro_CompBy | G62: PE_Enviro_CompDt | H62: PE_Design_CompBy | I62: PE_Design_CompDt | J62: ROW_CompBy | K62: ROW_CompDt
A63: =A57 -> 202303D08-05 | B63: =IF('Safety Application'!E98=0,"",'Safety Application'!E98) ->  | C63: =IF('Safety Application'!H98="","",MONTH('Safety Application'!H98)&"/"&DAY('Safety Application'!H98)&"/"&YEAR('Safety Application'!H98)) ->  | D63: =IF('Safety Application'!E99=0,"",'Safety Application'!E99) ->  | E63: =IF('Safety Application'!H99="","",MONTH('Safety Application'!H99)&"/"&DAY('Safety Application'!H99)&"/"&YEAR('Safety Application'!H99)) ->  | F63: =IF('Safety Application'!E100=0,"",'Safety Application'!E100) ->  | G63: =IF('Safety Application'!H100="","",MONTH('Safety Application'!H100)&"/"&DAY('Safety Application'!H100)&"/"&YEAR('Safety Application'!H100)) ->  | H63: =IF('Safety Application'!E101=0,"",'Safety Application'!E101) ->  | I63: =IF('Safety Application'!H101="","",MONTH('Safety Application'!H101)&"/"&DAY('Safety Application'!H101)&"/"&YEAR('Safety Application'!H101)) ->  | J63: =IF('Safety Application'!E102=0,"",'Safety Application'!E102) ->  | K63: =IF('Safety Application'!H102="","",MONTH('Safety Application'!H102)&"/"&DAY('Safety Application'!H102)&"/"&YEAR('Safety Application'!H102)) -> 
